Workbook

Sheet Feuil1
M2: nom_prnom
M3: =Feuil2!A3 -> محمد
A4: NOM & PRENOM | B4: محمد | D4: MOIE | E4: JEUR | F4: SALAIER | G4: AVENCE | H4: DATE | I4: SOLDE | J4: DATE | K4: O,B,S | M4: =Feuil2!A4 -> علي
A5: FONCTION | B5: =VLOOKUP($B$4,Feuil2!$A$2:$E$100,2,0) -> مدير | D5: جانفي | E5: =VLOOKUP($B$4,Feuil3!$A$2:$N$100,3,0) -> 30 | F5: =VLOOKUP($B$4,Feuil4!$A$2:$N$100,3,0) -> 100000 | G5: =VLOOKUP($B$4,Feuil5!$A$2:$Z$100,3,0) -> 50000 | H5: =VLOOKUP($B$4,Feuil5!$A$2:$Z$100,4,0) -> 2013-03-28 | I5: =VLOOKUP($B$4,Feuil6!$A$2:$AN$100,3,0) -> 4000 | J5: =VLOOKUP($B$4,Feuil6!$A$2:$AN$100,4,0) -> 2013-03-28 | K5: =VLOOKUP($B$4,Feuil6!$A$2:$AN$100,5,0) -> حساب بريدي | M5: =Feuil2!A5 -> احمد
A6: SALIER | B6: =VLOOKUP($B$4,Feuil2!$A$2:$E$100,3,0) -> 100000 | D6: فيفري | E6: =VLOOKUP($B$4,Feuil3!$A$2:$N$100,4,0) -> 20 | F6: =VLOOKUP($B$4,Feuil4!$A$2:$N$100,4,0) -> 66670 | G6: =VLOOKUP($B$4,Feuil5!$A$2:$Z$100,5,0) -> 0 | H6: =VLOOKUP($B$4,Feuil5!$A$2:$Z$100,6,0) -> 00:00:00 | I6: =VLOOKUP($B$4,Feuil6!$A$2:$AN$100,6,0) -> 100000 | J6: =VLOOKUP($B$4,Feuil6!$A$2:$AN$100,7,0) -> 2013-03-28 | K6: =VLOOKUP($B$4,Feuil6!$A$2:$AN$100,8,0) -> نقدا | M6: =Feuil2!A6 -> عبد الله
A7: N° TEL | B7: =VLOOKUP($B$4,Feuil2!$A$2:$E$100,4,0) -> 123456789 | D7: مارس | E7: =VLOOKUP($B$4,Feuil3!$A$2:$N$100,5,0) -> 14 | F7: =VLOOKUP($B$4,Feuil4!$A$2:$N$100,5,0) -> 46670 | G7: =VLOOKUP($B$4,Feuil5!$A$2:$Z$100,7,0) -> 0 | H7: =VLOOKUP($B$4,Feuil5!$A$2:$Z$100,8,0) -> 00:00:00 | I7: =VLOOKUP($B$4,Feuil6!$A$2:$AN$100,9,0) -> 0 | J7: =VLOOKUP($B$4,Feuil6!$A$2:$AN$100,10,0) -> 00:00:00 | K7: =VLOOKUP($B$4,Feuil6!$A$2:$AN$100,11,0) -> 0 | M7: =Feuil2!A7 -> 0
A8: N° CCP | B8: =VLOOKUP($B$4,Feuil2!$A$2:$E$100,5,0) -> 123456789123 | D8: افريل | E8: =VLOOKUP($B$4,Feuil3!$A$2:$N$100,6,0) -> 15 | F8: =VLOOKUP($B$4,Feuil4!$A$2:$N$100,6,0) -> 50000 | G8: =VLOOKUP($B$4,Feuil5!$A$2:$Z$100,9,0) -> 0 | H8: =VLOOKUP($B$4,Feuil5!$A$2:$Z$100,10,0) -> 00:00:00 | I8: =VLOOKUP($B$4,Feuil6!$A$2:$AN$100,12,0) -> 0 | J8: =VLOOKUP($B$4,Feuil6!$A$2:$AN$100,13,0) -> 00:00:00 | K8: =VLOOKUP($B$4,Feuil6!$A$2:$AN$100,14,0) -> 0 | M8: =Feuil2!A8 -> 0
A9: Rest Apye 2011 | B9: =VLOOKUP($B$4,Feuil4!A2:O100,15,0) -> 0 | D9: ماي | E9: =VLOOKUP($B$4,Feuil3!$A$2:$N$100,7,0) -> 30 | F9: =VLOOKUP($B$4,Feuil4!$A$2:$N$100,7,0) -> 100000 | G9: =VLOOKUP($B$4,Feuil5!$A$2:$Z$100,11,0) -> 0 | H9: =VLOOKUP($B$4,Feuil5!$A$2:$Z$100,12,0) -> 00:00:00 | I9: =VLOOKUP($B$4,Feuil6!$A$2:$AN$100,15,0) -> 0 | J9: =VLOOKUP($B$4,Feuil6!$A$2:$AN$100,16,0) -> 00:00:00 | K9: =VLOOKUP($B$4,Feuil6!$A$2:$AN$100,17,0) -> 0 | M9: =Feuil2!A9 -> 0
A10: CRIDIE | B10: =$F$17+$B$9-$G$17-$I$17 -> 452670 | D10: جوان | E10: =VLOOKUP($B$4,Feuil3!$A$2:$N$100,8,0) -> 31 | F10: =VLOOKUP($B$4,Feuil4!$A$2:$N$100,8,0) -> 103330 | G10: =VLOOKUP($B$4,Feuil5!$A$2:$Z$100,13,0) -> 0 | H10: =VLOOKUP($B$4,Feuil5!$A$2:$Z$100,14,0) -> 00:00:00 | I10: =VLOOKUP($B$4,Feuil6!$A$2:$AN$100,18,0) -> 0 | J10: =VLOOKUP($B$4,Feuil6!$A$2:$AN$100,19,0) -> 00:00:00 | K10: =VLOOKUP($B$4,Feuil6!$A$2:$AN$100,20,0) -> 0 | M10: =Feuil2!A10 -> 0
A11: TOTAL CRIDIE | B11: =Feuil4!P101-Feuil5!AA101-Feuil6!AP101 -> 244170 | D11: جويلية | E11: =VLOOKUP($B$4,Feuil3!$A$2:$N$100,9,0) -> 24 | F11: =VLOOKUP($B$4,Feuil4!$A$2:$N$100,9,0) -> 80000 | G11: =VLOOKUP($B$4,Feuil5!$A$2:$Z$100,15,0) -> 0 | H11: =VLOOKUP($B$4,Feuil5!$A$2:$Z$100,16,0) -> 00:00:00 | I11: =VLOOKUP($B$4,Feuil6!$A$2:$AN$100,21,0) -> 0 | J11: =VLOOKUP($B$4,Feuil6!$A$2:$AN$100,22,0) -> 00:00:00 | K11: =VLOOKUP($B$4,Feuil6!$A$2:$AN$100,23,0) -> 0 | M11: =Feuil2!A11 -> 0
D12: اوت | E12: =VLOOKUP($B$4,Feuil3!$A$2:$N$100,10,0) -> 18 | F12: =VLOOKUP($B$4,Feuil4!$A$2:$N$100,10,0) -> 60000 | G12: =VLOOKUP($B$4,Feuil5!$A$2:$Z$100,17,0) -> 0 | H12: =VLOOKUP($B$4,Feuil5!$A$2:$Z$100,18,0) -> 00:00:00 | I12: =VLOOKUP($B$4,Feuil6!$A$2:$AN$100,24,0) -> 0 | J12: =VLOOKUP($B$4,Feuil6!$A$2:$AN$100,25,0) -> 00:00:00 | K12: =VLOOKUP($B$4,Feuil6!$A$2:$AN$100,26,0) -> 0 | M12: =Feuil2!A12 -> 0
D13: سبتمبر | E13: =VLOOKUP($B$4,Feuil3!$A$2:$N$100,11,0) -> 0 | F13: =VLOOKUP($B$4,Feuil4!$A$2:$N$100,11,0) -> 0 | G13: =VLOOKUP($B$4,Feuil5!$A$2:$Z$100,19,0) -> 0 | H13: =VLOOKUP($B$4,Feuil5!$A$2:$Z$100,20,0) -> 00:00:00 | I13: =VLOOKUP($B$4,Feuil6!$A$2:$AN$100,27,0) -> 0 | J13: =VLOOKUP($B$4,Feuil6!$A$2:$AN$100,28,0) -> 00:00:00 | K13: =VLOOKUP($B$4,Feuil6!$A$2:$AN$100,29,0) -> 0 | M13: =Feuil2!A13 -> 0
D14: اكتوبر | E14: =VLOOKUP($B$4,Feuil3!$A$2:$N$100,12,0) -> 0 | F14: =VLOOKUP($B$4,Feuil4!$A$2:$N$100,12,0) -> 0 | G14: =VLOOKUP($B$4,Feuil5!$A$2:$Z$100,21,0) -> 0 | H14: =VLOOKUP($B$4,Feuil5!$A$2:$Z$100,22,0) -> 00:00:00 | I14: =VLOOKUP($B$4,Feuil6!$A$2:$AN$100,30,0) -> 0 | J14: =VLOOKUP($B$4,Feuil6!$A$2:$AN$100,31,0) -> 00:00:00 | K14: =VLOOKUP($B$4,Feuil6!$A$2:$AN$100,32,0) -> 0 | M14: =Feuil2!A14 -> 0
D15: نوفمبر | E15: =VLOOKUP($B$4,Feuil3!$A$2:$N$100,13,0) -> 0 | F15: =VLOOKUP($B$4,Feuil4!$A$2:$N$100,13,0) -> 0 | G15: =VLOOKUP($B$4,Feuil5!$A$2:$Z$100,23,0) -> 0 | H15: =VLOOKUP($B$4,Feuil5!$A$2:$Z$100,24,0) -> 00:00:00 | I15: =VLOOKUP($B$4,Feuil6!$A$2:$AN$100,33,0) -> 0 | J15: =VLOOKUP($B$4,Feuil6!$A$2:$AN$100,34,0) -> 00:00:00 | K15: =VLOOKUP($B$4,Feuil6!$A$2:$AN$100,35,0) -> 0 | M15: =Feuil2!A15 -> 0
D16: فيفري | E16: =VLOOKUP($B$4,Feuil3!$A$2:$N$100,14,0) -> 0 | F16: =VLOOKUP($B$4,Feuil4!$A$2:$N$100,14,0) -> 0 | G16: =VLOOKUP($B$4,Feuil5!$A$2:$Z$100,25,0) -> 0 | H16: =VLOOKUP($B$4,Feuil5!$A$2:$Z$100,26,0) -> 00:00:00 | I16: =VLOOKUP($B$4,Feuil6!$A$2:$AN$100,36,0) -> 0 | J16: =VLOOKUP($B$4,Feuil6!$A$2:$AN$100,37,0) -> 00:00:00 | K16: =VLOOKUP($B$4,Feuil6!$A$2:$AN$100,38,0) -> 0 | M16: =Feuil2!A16 -> 0
F17: =SUM(F5:F16) -> 606670 | G17: =SUM(G5:G16) -> 50000 | I17: =SUM(I5:I16) -> 104000 | M17: =Feuil2!A17 -> 0
M18: =Feuil2!A18 -> 0
M19: =Feuil2!A19 -> 0
M20: =Feuil2!A20 -> 0
M21: =Feuil2!A21 -> 0
M22: =Feuil2!A22 -> 0
M23: =Feuil2!A23 -> 0
M24: =Feuil2!A24 -> 0
M25: =Feuil2!A25 -> 0
M26: =Feuil2!A26 -> 0
M27: =Feuil2!A27 -> 0
M28: =Feuil2!A28 -> 0
M29: =Feuil2!A29 -> 0
M30: =Feuil2!A30 -> 0
M31: =Feuil2!A31 -> 0
M32: =Feuil2!A32 -> 0
M33: =Feuil2!A33 -> 0
M34: =Feuil2!A34 -> 0
M35: =Feuil2!A35 -> 0
M36: =Feuil2!A36 -> 0
M37: =Feuil2!A37 -> 0
M38: =Feuil2!A38 -> 0
M39: =Feuil2!A39 -> 0
M40: =Feuil2!A40 -> 0
M41: =Feuil2!A41 -> 0
M42: =Feuil2!A42 -> 0
M43: =Feuil2!A43 -> 0
M44: =Feuil2!A44 -> 0
M45: =Feuil2!A45 -> 0
M46: =Feuil2!A46 -> 0
M47: =Feuil2!A47 -> 0
M48: =Feuil2!A48 -> 0
M49: =Feuil2!A49 -> 0
M50: =Feuil2!A50 -> 0
M51: =Feuil2!A51 -> 0
M52: =Feuil2!A52 -> 0
M53: =Feuil2!A53 -> 0
M54: =Feuil2!A54 -> 0
M55: =Feuil2!A55 -> 0
M56: =Feuil2!A56 -> 0
M57: =Feuil2!A57 -> 0
M58: =Feuil2!A58 -> 0
M59: =Feuil2!A59 -> 0
M60: =Feuil2!A60 -> 0
M61: =Feuil2!A61 -> 0
M62: =Feuil2!A62 -> 0
M63: =Feuil2!A63 -> 0
M64: =Feuil2!A64 -> 0
M65: =Feuil2!A65 -> 0
M66: =Feuil2!A66 -> 0
M67: =Feuil2!A67 -> 0
M68: =Feuil2!A68 -> 0
M69: =Feuil2!A69 -> 0
M70: =Feuil2!A70 -> 0
M71: =Feuil2!A71 -> 0
M72: =Feuil2!A72 -> 0
M73: =Feuil2!A73 -> 0
M74: =Feuil2!A74 -> 0
M75: =Feuil2!A75 -> 0
M76: =Feuil2!A76 -> 0
M77: =Feuil2!A77 -> 0
M78: =Feuil2!A78 -> 0
M79: =Feuil2!A79 -> 0
M80: =Feuil2!A80 -> 0
M81: =Feuil2!A81 -> 0
M82: =Feuil2!A82 -> 0
M83: =Feuil2!A83 -> 0
M84: =Feuil2!A84 -> 0
M85: =Feuil2!A85 -> 0
M86: =Feuil2!A86 -> 0
M87: =Feuil2!A87 -> 0
M88: =Feuil2!A88 -> 0
M89: =Feuil2!A89 -> 0
M90: =Feuil2!A90 -> 0
M91: =Feuil2!A91 -> 0
M92: =Feuil2!A92 -> 0
M93: =Feuil2!A93 -> 0
M94: =Feuil2!A94 -> 0
M95: =Feuil2!A95 -> 0
M96: =Feuil2!A96 -> 0
M97: =Feuil2!A97 -> 0
M98: =Feuil2!A98 -> 0
M99: =Feuil2!A99 -> 0
M100: =Feuil2!A100 -> 0

Sheet Feuil2
A1: احمد
A2: NOM & PRENOM | B2: FONCTION | C2: SALIER | D2: N° TEL | E2: N° CCP
A3: محمد | B3: مدير | C3: 100000 | D3: 123456789 | E3: 123456789123
A4: علي | B4: رئيس قسم | C4: 90000 | D4: 123456789 | E4: 123456789123
A5: احمد | B5: محاسب | C5: 80000 | D5: 123456789 | E5: 123456789123
A6: عبد الله | B6: عامل | C6: 70000 | D6: 123456789 | E6: 123456789123

Sheet Feuil3
A1: احمد
A2: NOM & PRENOM | B2: FONCTION | C2: Janvier | D2: Février | E2: Mars | F2: Avril | G2: Mai | H2: Juin | I2: Juillet | J2: Août | K2: Septembre | L2: Octobre | M2: Novembre | N2: Décembre | O2: O B S
A3: =Feuil2!A3 -> محمد | B3: =Feuil2!B3 -> مدير | C3: 30 | D3: 20 | E3: 14 | F3: 15 | G3: 30 | H3: 31 | I3: 24 | J3: 18
A4: =Feuil2!A4 -> علي | B4: =Feuil2!B4 -> رئيس قسم | C4: 30 | D4: 20 | E4: 14 | F4: 15 | G4: 30 | H4: 31 | I4: 24 | J4: 18
A5: =Feuil2!A5 -> احمد | B5: =Feuil2!B5 -> محاسب | C5: 30 | D5: 20 | E5: 14 | F5: 15 | G5: 30 | H5: 31 | I5: 24 | J5: 18
A6: =Feuil2!A6 -> عبد الله | B6: =Feuil2!B6 -> عامل | C6: 30 | D6: 20 | E6: 14 | F6: 15 | G6: 30 | H6: 31 | I6: 24 | J6: 18
A7: =Feuil2!A7 -> 0 | B7: =Feuil2!B7 -> 0
A8: =Feuil2!A8 -> 0 | B8: =Feuil2!B8 -> 0
A9: =Feuil2!A9 -> 0 | B9: =Feuil2!B9 -> 0
A10: =Feuil2!A10 -> 0 | B10: =Feuil2!B10 -> 0
A11: =Feuil2!A11 -> 0 | B11: =Feuil2!B11 -> 0
A12: =Feuil2!A12 -> 0 | B12: =Feuil2!B12 -> 0
A13: =Feuil2!A13 -> 0 | B13: =Feuil2!B13 -> 0
A14: =Feuil2!A14 -> 0 | B14: =Feuil2!B14 -> 0
A15: =Feuil2!A15 -> 0 | B15: =Feuil2!B15 -> 0
A16: =Feuil2!A16 -> 0 | B16: =Feuil2!B16 -> 0
A17: =Feuil2!A17 -> 0 | B17: =Feuil2!B17 -> 0
A18: =Feuil2!A18 -> 0 | B18: =Feuil2!B18 -> 0
A19: =Feuil2!A19 -> 0 | B19: =Feuil2!B19 -> 0
A20: =Feuil2!A20 -> 0 | B20: =Feuil2!B20 -> 0
A21: =Feuil2!A21 -> 0 | B21: =Feuil2!B21 -> 0
A22: =Feuil2!A22 -> 0 | B22: =Feuil2!B22 -> 0
A23: =Feuil2!A23 -> 0 | B23: =Feuil2!B23 -> 0
A24: =Feuil2!A24 -> 0 | B24: =Feuil2!B24 -> 0
A25: =Feuil2!A25 -> 0 | B25: =Feuil2!B25 -> 0
A26: =Feuil2!A26 -> 0 | B26: =Feuil2!B26 -> 0
A27: =Feuil2!A27 -> 0 | B27: =Feuil2!B27 -> 0
A28: =Feuil2!A28 -> 0 | B28: =Feuil2!B28 -> 0
A29: =Feuil2!A29 -> 0 | B29: =Feuil2!B29 -> 0
A30: =Feuil2!A30 -> 0 | B30: =Feuil2!B30 -> 0
A31: =Feuil2!A31 -> 0 | B31: =Feuil2!B31 -> 0
A32: =Feuil2!A32 -> 0 | B32: =Feuil2!B32 -> 0
A33: =Feuil2!A33 -> 0 | B33: =Feuil2!B33 -> 0
A34: =Feuil2!A34 -> 0 | B34: =Feuil2!B34 -> 0
A35: =Feuil2!A35 -> 0 | B35: =Feuil2!B35 -> 0
A36: =Feuil2!A36 -> 0 | B36: =Feuil2!B36 -> 0
A37: =Feuil2!A37 -> 0 | B37: =Feuil2!B37 -> 0
A38: =Feuil2!A38 -> 0 | B38: =Feuil2!B38 -> 0
A39: =Feuil2!A39 -> 0 | B39: =Feuil2!B39 -> 0
A40: =Feuil2!A40 -> 0 | B40: =Feuil2!B40 -> 0
A41: =Feuil2!A41 -> 0 | B41: =Feuil2!B41 -> 0
A42: =Feuil2!A42 -> 0 | B42: =Feuil2!B42 -> 0
A43: =Feuil2!A43 -> 0 | B43: =Feuil2!B43 -> 0
A44: =Feuil2!A44 -> 0 | B44: =Feuil2!B44 -> 0
A45: =Feuil2!A45 -> 0 | B45: =Feuil2!B45 -> 0
A46: =Feuil2!A46 -> 0 | B46: =Feuil2!B46 -> 0
A47: =Feuil2!A47 -> 0 | B47: =Feuil2!B47 -> 0
A48: =Feuil2!A48 -> 0 | B48: =Feuil2!B48 -> 0
A49: =Feuil2!A49 -> 0 | B49: =Feuil2!B49 -> 0
A50: =Feuil2!A50 -> 0 | B50: =Feuil2!B50 -> 0
A51: =Feuil2!A51 -> 0 | B51: =Feuil2!B51 -> 0
A52: =Feuil2!A52 -> 0 | B52: =Feuil2!B52 -> 0
A53: =Feuil2!A53 -> 0 | B53: =Feuil2!B53 -> 0
A54: =Feuil2!A54 -> 0 | B54: =Feuil2!B54 -> 0
A55: =Feuil2!A55 -> 0 | B55: =Feuil2!B55 -> 0
A56: =Feuil2!A56 -> 0 | B56: =Feuil2!B56 -> 0
A57: =Feuil2!A57 -> 0 | B57: =Feuil2!B57 -> 0
A58: =Feuil2!A58 -> 0 | B58: =Feuil2!B58 -> 0
A59: =Feuil2!A59 -> 0 | B59: =Feuil2!B59 -> 0
A60: =Feuil2!A60 -> 0 | B60: =Feuil2!B60 -> 0
A61: =Feuil2!A61 -> 0 | B61: =Feuil2!B61 -> 0
A62: =Feuil2!A62 -> 0 | B62: =Feuil2!B62 -> 0
A63: =Feuil2!A63 -> 0 | B63: =Feuil2!B63 -> 0
A64: =Feuil2!A64 -> 0 | B64: =Feuil2!B64 -> 0
A65: =Feuil2!A65 -> 0 | B65: =Feuil2!B65 -> 0
A66: =Feuil2!A66 -> 0 | B66: =Feuil2!B66 -> 0
A67: =Feuil2!A67 -> 0 | B67: =Feuil2!B67 -> 0
A68: =Feuil2!A68 -> 0 | B68: =Feuil2!B68 -> 0
A69: =Feuil2!A69 -> 0 | B69: =Feuil2!B69 -> 0
A70: =Feuil2!A70 -> 0 | B70: =Feuil2!B70 -> 0
A71: =Feuil2!A71 -> 0 | B71: =Feuil2!B71 -> 0
A72: =Feuil2!A72 -> 0 | B72: =Feuil2!B72 -> 0
A73: =Feuil2!A73 -> 0 | B73: =Feuil2!B73 -> 0
A74: =Feuil2!A74 -> 0 | B74: =Feuil2!B74 -> 0
A75: =Feuil2!A75 -> 0 | B75: =Feuil2!B75 -> 0
A76: =Feuil2!A76 -> 0 | B76: =Feuil2!B76 -> 0
A77: =Feuil2!A77 -> 0 | B77: =Feuil2!B77 -> 0
A78: =Feuil2!A78 -> 0 | B78: =Feuil2!B78 -> 0
A79: =Feuil2!A79 -> 0 | B79: =Feuil2!B79 -> 0
A80: =Feuil2!A80 -> 0 | B80: =Feuil2!B80 -> 0
A81: =Feuil2!A81 -> 0 | B81: =Feuil2!B81 -> 0
A82: =Feuil2!A82 -> 0 | B82: =Feuil2!B82 -> 0
A83: =Feuil2!A83 -> 0 | B83: =Feuil2!B83 -> 0
A84: =Feuil2!A84 -> 0 | B84: =Feuil2!B84 -> 0
A85: =Feuil2!A85 -> 0 | B85: =Feuil2!B85 -> 0
A86: =Feuil2!A86 -> 0 | B86: =Feuil2!B86 -> 0
A87: =Feuil2!A87 -> 0 | B87: =Feuil2!B87 -> 0
A88: =Feuil2!A88 -> 0 | B88: =Feuil2!B88 -> 0
A89: =Feuil2!A89 -> 0 | B89: =Feuil2!B89 -> 0
A90: =Feuil2!A90 -> 0 | B90: =Feuil2!B90 -> 0
A91: =Feuil2!A91 -> 0 | B91: =Feuil2!B91 -> 0
A92: =Feuil2!A92 -> 0 | B92: =Feuil2!B92 -> 0
A93: =Feuil2!A93 -> 0 | B93: =Feuil2!B93 -> 0
A94: =Feuil2!A94 -> 0 | B94: =Feuil2!B94 -> 0
A95: =Feuil2!A95 -> 0 | B95: =Feuil2!B95 -> 0
A96: =Feuil2!A96 -> 0 | B96: =Feuil2!B96 -> 0
A97: =Feuil2!A97 -> 0 | B97: =Feuil2!B97 -> 0
A98: =Feuil2!A98 -> 0 | B98: =Feuil2!B98 -> 0
A99: =Feuil2!A99 -> 0 | B99: =Feuil2!B99 -> 0
A100: =Feuil2!A100 -> 0 | B100: =Feuil2!B100 -> 0

Sheet Feuil4
A2: NOM & PRENOM | B2: FONCTION | C2: JANVIER | D2: FEVRIER | E2: MARS | F2: AVRIL | G2: MAI | H2: Juin | I2: Juillet | J2: Oute | K2: Septembre | L2: Octobre | M2: Nouvembre | N2: Decembre | O2: Re/apy
A3: =Feuil2!A3 -> محمد | B3: =Feuil2!B3 -> مدير | C3: =ROUND(Feuil2!C3/30*Feuil3!C3,-1) -> 100000 | D3: =ROUND(Feuil2!C3/30*Feuil3!D3,-1) -> 66670 | E3: =ROUND(Feuil2!$C3/30*Feuil3!E3,-1) -> 46670 | F3: =ROUND(Feuil2!$C3/30*Feuil3!F3,-1) -> 50000 | G3: =ROUND(Feuil2!$C3/30*Feuil3!G3,-1) -> 100000 | H3: =ROUND(Feuil2!$C3/30*Feuil3!H3,-1) -> 103330 | I3: =ROUND(Feuil2!$C3/30*Feuil3!I3,-1) -> 80000 | J3: =ROUND(Feuil2!$C3/30*Feuil3!J3,-1) -> 60000 | K3: =ROUND(Feuil2!$C3/30*Feuil3!K3,-1) -> 0 | L3: =ROUND(Feuil2!$C3/30*Feuil3!L3,-1) -> 0 | M3: =ROUND(Feuil2!$C3/30*Feuil3!M3,-1) -> 0 | N3: =ROUND(Feuil2!$C3/30*Feuil3!N3,-1) -> 0 | O3: 0 | P3: =SUM(C3:O3) -> 606670
A4: =Feuil2!A4 -> علي | B4: =Feuil2!B4 -> رئيس قسم | C4: =ROUND(Feuil2!C4/30*Feuil3!C4,-1) -> 90000 | D4: =ROUND(Feuil2!C4/30*Feuil3!D4,-1) -> 60000 | E4: =ROUND(Feuil2!$C4/30*Feuil3!E4,-1) -> 42000 | F4: =ROUND(Feuil2!$C4/30*Feuil3!F4,-1) -> 45000 | G4: =ROUND(Feuil2!$C4/30*Feuil3!G4,-1) -> 90000 | H4: =ROUND(Feuil2!$C4/30*Feuil3!H4,-1) -> 93000 | I4: =ROUND(Feuil2!$C4/30*Feuil3!I4,-1) -> 72000 | J4: =ROUND(Feuil2!$C4/30*Feuil3!J4,-1) -> 54000 | K4: =ROUND(Feuil2!$C4/30*Feuil3!K4,-1) -> 0 | L4: =ROUND(Feuil2!$C4/30*Feuil3!L4,-1) -> 0 | M4: =ROUND(Feuil2!$C4/30*Feuil3!M4,-1) -> 0 | N4: =ROUND(Feuil2!$C4/30*Feuil3!N4,-1) -> 0 | O4: 0 | P4: =SUM(C4:O4) -> 546000
A5: =Feuil2!A5 -> احمد | B5: =Feuil2!B5 -> محاسب | C5: =ROUND(Feuil2!C5/30*Feuil3!C5,-1) -> 80000 | D5: =ROUND(Feuil2!C5/30*Feuil3!D5,-1) -> 53330 | E5: =ROUND(Feuil2!$C5/30*Feuil3!E5,-1) -> 37330 | F5: =ROUND(Feuil2!$C5/30*Feuil3!F5,-1) -> 40000 | G5: =ROUND(Feuil2!$C5/30*Feuil3!G5,-1) -> 80000 | H5: =ROUND(Feuil2!$C5/30*Feuil3!H5,-1) -> 82670 | I5: =ROUND(Feuil2!$C5/30*Feuil3!I5,-1) -> 64000 | J5: =ROUND(Feuil2!$C5/30*Feuil3!J5,-1) -> 48000 | K5: =ROUND(Feuil2!$C5/30*Feuil3!K5,-1) -> 0 | L5: =ROUND(Feuil2!$C5/30*Feuil3!L5,-1) -> 0 | M5: =ROUND(Feuil2!$C5/30*Feuil3!M5,-1) -> 0 | N5: =ROUND(Feuil2!$C5/30*Feuil3!N5,-1) -> 0 | O5: 22000 | P5: 507330
A6: =Feuil2!A6 -> عبد الله | B6: =Feuil2!B6 -> عامل | C6: =ROUND(Feuil2!C6/30*Feuil3!C6,-1) -> 70000 | D6: =ROUND(Feuil2!C6/30*Feuil3!D6,-1) -> 46670 | E6: =ROUND(Feuil2!$C6/30*Feuil3!E6,-1) -> 32670 | F6: =ROUND(Feuil2!$C6/30*Feuil3!F6,-1) -> 35000 | G6: =ROUND(Feuil2!$C6/30*Feuil3!G6,-1) -> 70000 | H6: =ROUND(Feuil2!$C6/30*Feuil3!H6,-1) -> 72330 | I6: =ROUND(Feuil2!$C6/30*Feuil3!I6,-1) -> 56000 | J6: =ROUND(Feuil2!$C6/30*Feuil3!J6,-1) -> 42000 | K6: =ROUND(Feuil2!$C6/30*Feuil3!K6,-1) -> 0 | L6: =ROUND(Feuil2!$C6/30*Feuil3!L6,-1) -> 0 | M6: =ROUND(Feuil2!$C6/30*Feuil3!M6,-1) -> 0 | N6: =ROUND(Feuil2!$C6/30*Feuil3!N6,-1) -> 0 | O6: 0 | P6: 424670
A7: =Feuil2!A7 -> 0 | B7: =Feuil2!B7 -> 0 | C7: =ROUND(Feuil2!C7/30*Feuil3!C7,-1) -> 0 | D7: =ROUND(Feuil2!C7/30*Feuil3!D7,-1) -> 0 | E7: =ROUND(Feuil2!$C7/30*Feuil3!E7,-1) -> 0 | F7: =ROUND(Feuil2!$C7/30*Feuil3!F7,-1) -> 0 | G7: =ROUND(Feuil2!$C7/30*Feuil3!G7,-1) -> 0 | H7: =ROUND(Feuil2!$C7/30*Feuil3!H7,-1) -> 0 | I7: =ROUND(Feuil2!$C7/30*Feuil3!I7,-1) -> 0 | J7: =ROUND(Feuil2!$C7/30*Feuil3!J7,-1) -> 0 | K7: =ROUND(Feuil2!$C7/30*Feuil3!K7,-1) -> 0 | L7: =ROUND(Feuil2!$C7/30*Feuil3!L7,-1) -> 0 | M7: =ROUND(Feuil2!$C7/30*Feuil3!M7,-1) -> 0 | N7: =ROUND(Feuil2!$C7/30*Feuil3!N7,-1) -> 0 | O7: 27000 | P7: 27000
A8: =Feuil2!A8 -> 0 | B8: =Feuil2!B8 -> 0 | C8: =ROUND(Feuil2!C8/30*Feuil3!C8,-1) -> 0 | D8: =ROUND(Feuil2!C8/30*Feuil3!D8,-1) -> 0 | E8: =ROUND(Feuil2!$C8/30*Feuil3!E8,-1) -> 0 | F8: =ROUND(Feuil2!$C8/30*Feuil3!F8,-1) -> 0 | G8: =ROUND(Feuil2!$C8/30*Feuil3!G8,-1) -> 0 | H8: =ROUND(Feuil2!$C8/30*Feuil3!H8,-1) -> 0 | I8: =ROUND(Feuil2!$C8/30*Feuil3!I8,-1) -> 0 | J8: =ROUND(Feuil2!$C8/30*Feuil3!J8,-1) -> 0 | K8: =ROUND(Feuil2!$C8/30*Feuil3!K8,-1) -> 0 | L8: =ROUND(Feuil2!$C8/30*Feuil3!L8,-1) -> 0 | M8: =ROUND(Feuil2!$C8/30*Feuil3!M8,-1) -> 0 | N8: =ROUND(Feuil2!$C8/30*Feuil3!N8,-1) -> 0 | O8: 0 | P8: 0
A9: =Feuil2!A9 -> 0 | B9: =Feuil2!B9 -> 0 | C9: =ROUND(Feuil2!C9/30*Feuil3!C9,-1) -> 0 | D9: =ROUND(Feuil2!C9/30*Feuil3!D9,-1) -> 0 | E9: =ROUND(Feuil2!$C9/30*Feuil3!E9,-1) -> 0 | F9: =ROUND(Feuil2!$C9/30*Feuil3!F9,-1) -> 0 | G9: =ROUND(Feuil2!$C9/30*Feuil3!G9,-1) -> 0 | H9: =ROUND(Feuil2!$C9/30*Feuil3!H9,-1) -> 0 | I9: =ROUND(Feuil2!$C9/30*Feuil3!I9,-1) -> 0 | J9: =ROUND(Feuil2!$C9/30*Feuil3!J9,-1) -> 0 | K9: =ROUND(Feuil2!$C9/30*Feuil3!K9,-1) -> 0 | L9: =ROUND(Feuil2!$C9/30*Feuil3!L9,-1) -> 0 | M9: =ROUND(Feuil2!$C9/30*Feuil3!M9,-1) -> 0 | N9: =ROUND(Feuil2!$C9/30*Feuil3!N9,-1) -> 0 | P9: 0
A10: =Feuil2!A10 -> 0 | B10: =Feuil2!B10 -> 0 | C10: =ROUND(Feuil2!C10/30*Feuil3!C10,-1) -> 0 | D10: =ROUND(Feuil2!C10/30*Feuil3!D10,-1) -> 0 | E10: =ROUND(Feuil2!$C10/30*Feuil3!E10,-1) -> 0 | F10: =ROUND(Feuil2!$C10/30*Feuil3!F10,-1) -> 0 | G10: =ROUND(Feuil2!$C10/30*Feuil3!G10,-1) -> 0 | H10: =ROUND(Feuil2!$C10/30*Feuil3!H10,-1) -> 0 | I10: =ROUND(Feuil2!$C10/30*Feuil3!I10,-1) -> 0 | J10: =ROUND(Feuil2!$C10/30*Feuil3!J10,-1) -> 0 | K10: =ROUND(Feuil2!$C10/30*Feuil3!K10,-1) -> 0 | L10: =ROUND(Feuil2!$C10/30*Feuil3!L10,-1) -> 0 | M10: =ROUND(Feuil2!$C10/30*Feuil3!M10,-1) -> 0 | N10: =ROUND(Feuil2!$C10/30*Feuil3!N10,-1) -> 0 | P10: 0
A11: =Feuil2!A11 -> 0 | B11: =Feuil2!B11 -> 0 | C11: =ROUND(Feuil2!C11/30*Feuil3!C11,-1) -> 0 | D11: =ROUND(Feuil2!C11/30*Feuil3!D11,-1) -> 0 | E11: =ROUND(Feuil2!$C11/30*Feuil3!E11,-1) -> 0 | F11: =ROUND(Feuil2!$C11/30*Feuil3!F11,-1) -> 0 | G11: =ROUND(Feuil2!$C11/30*Feuil3!G11,-1) -> 0 | H11: =ROUND(Feuil2!$C11/30*Feuil3!H11,-1) -> 0 | I11: =ROUND(Feuil2!$C11/30*Feuil3!I11,-1) -> 0 | J11: =ROUND(Feuil2!$C11/30*Feuil3!J11,-1) -> 0 | K11: =ROUND(Feuil2!$C11/30*Feuil3!K11,-1) -> 0 | L11: =ROUND(Feuil2!$C11/30*Feuil3!L11,-1) -> 0 | M11: =ROUND(Feuil2!$C11/30*Feuil3!M11,-1) -> 0 | N11: =ROUND(Feuil2!$C11/30*Feuil3!N11,-1) -> 0 | P11: 0
A12: =Feuil2!A12 -> 0 | B12: =Feuil2!B12 -> 0 | C12: =ROUND(Feuil2!C12/30*Feuil3!C12,-1) -> 0 | D12: =ROUND(Feuil2!C12/30*Feuil3!D12,-1) -> 0 | E12: =ROUND(Feuil2!$C12/30*Feuil3!E12,-1) -> 0 | F12: =ROUND(Feuil2!$C12/30*Feuil3!F12,-1) -> 0 | G12: =ROUND(Feuil2!$C12/30*Feuil3!G12,-1) -> 0 | H12: =ROUND(Feuil2!$C12/30*Feuil3!H12,-1) -> 0 | I12: =ROUND(Feuil2!$C12/30*Feuil3!I12,-1) -> 0 | J12: =ROUND(Feuil2!$C12/30*Feuil3!J12,-1) -> 0 | K12: =ROUND(Feuil2!$C12/30*Feuil3!K12,-1) -> 0 | L12: =ROUND(Feuil2!$C12/30*Feuil3!L12,-1) -> 0 | M12: =ROUND(Feuil2!$C12/30*Feuil3!M12,-1) -> 0 | N12: =ROUND(Feuil2!$C12/30*Feuil3!N12,-1) -> 0 | P12: 0
A13: =Feuil2!A13 -> 0 | B13: =Feuil2!B13 -> 0 | C13: =ROUND(Feuil2!C13/30*Feuil3!C13,-1) -> 0 | D13: =ROUND(Feuil2!C13/30*Feuil3!D13,-1) -> 0 | E13: =ROUND(Feuil2!$C13/30*Feuil3!E13,-1) -> 0 | F13: =ROUND(Feuil2!$C13/30*Feuil3!F13,-1) -> 0 | G13: =ROUND(Feuil2!$C13/30*Feuil3!G13,-1) -> 0 | H13: =ROUND(Feuil2!$C13/30*Feuil3!H13,-1) -> 0 | I13: =ROUND(Feuil2!$C13/30*Feuil3!I13,-1) -> 0 | J13: =ROUND(Feuil2!$C13/30*Feuil3!J13,-1) -> 0 | K13: =ROUND(Feuil2!$C13/30*Feuil3!K13,-1) -> 0 | L13: =ROUND(Feuil2!$C13/30*Feuil3!L13,-1) -> 0 | M13: =ROUND(Feuil2!$C13/30*Feuil3!M13,-1) -> 0 | N13: =ROUND(Feuil2!$C13/30*Feuil3!N13,-1) -> 0 | P13: 0
A14: =Feuil2!A14 -> 0 | B14: =Feuil2!B14 -> 0 | C14: =ROUND(Feuil2!C14/30*Feuil3!C14,-1) -> 0 | D14: =ROUND(Feuil2!C14/30*Feuil3!D14,-1) -> 0 | E14: =ROUND(Feuil2!$C14/30*Feuil3!E14,-1) -> 0 | F14: =ROUND(Feuil2!$C14/30*Feuil3!F14,-1) -> 0 | G14: =ROUND(Feuil2!$C14/30*Feuil3!G14,-1) -> 0 | H14: =ROUND(Feuil2!$C14/30*Feuil3!H14,-1) -> 0 | I14: =ROUND(Feuil2!$C14/30*Feuil3!I14,-1) -> 0 | J14: =ROUND(Feuil2!$C14/30*Feuil3!J14,-1) -> 0 | K14: =ROUND(Feuil2!$C14/30*Feuil3!K14,-1) -> 0 | L14: =ROUND(Feuil2!$C14/30*Feuil3!L14,-1) -> 0 | M14: =ROUND(Feuil2!$C14/30*Feuil3!M14,-1) -> 0 | N14: =ROUND(Feuil2!$C14/30*Feuil3!N14,-1) -> 0 | P14: 0
A15: =Feuil2!A15 -> 0 | B15: =Feuil2!B15 -> 0 | C15: =ROUND(Feuil2!C15/30*Feuil3!C15,-1) -> 0 | D15: =ROUND(Feuil2!C15/30*Feuil3!D15,-1) -> 0 | E15: =ROUND(Feuil2!$C15/30*Feuil3!E15,-1) -> 0 | F15: =ROUND(Feuil2!$C15/30*Feuil3!F15,-1) -> 0 | G15: =ROUND(Feuil2!$C15/30*Feuil3!G15,-1) -> 0 | H15: =ROUND(Feuil2!$C15/30*Feuil3!H15,-1) -> 0 | I15: =ROUND(Feuil2!$C15/30*Feuil3!I15,-1) -> 0 | J15: =ROUND(Feuil2!$C15/30*Feuil3!J15,-1) -> 0 | K15: =ROUND(Feuil2!$C15/30*Feuil3!K15,-1) -> 0 | L15: =ROUND(Feuil2!$C15/30*Feuil3!L15,-1) -> 0 | M15: =ROUND(Feuil2!$C15/30*Feuil3!M15,-1) -> 0 | N15: =ROUND(Feuil2!$C15/30*Feuil3!N15,-1) -> 0 | P15: 0
A16: =Feuil2!A16 -> 0 | B16: =Feuil2!B16 -> 0 | C16: =ROUND(Feuil2!C16/30*Feuil3!C16,-1) -> 0 | D16: =ROUND(Feuil2!C16/30*Feuil3!D16,-1) -> 0 | E16: =ROUND(Feuil2!$C16/30*Feuil3!E16,-1) -> 0 | F16: =ROUND(Feuil2!$C16/30*Feuil3!F16,-1) -> 0 | G16: =ROUND(Feuil2!$C16/30*Feuil3!G16,-1) -> 0 | H16: =ROUND(Feuil2!$C16/30*Feuil3!H16,-1) -> 0 | I16: =ROUND(Feuil2!$C16/30*Feuil3!I16,-1) -> 0 | J16: =ROUND(Feuil2!$C16/30*Feuil3!J16,-1) -> 0 | K16: =ROUND(Feuil2!$C16/30*Feuil3!K16,-1) -> 0 | L16: =ROUND(Feuil2!$C16/30*Feuil3!L16,-1) -> 0 | M16: =ROUND(Feuil2!$C16/30*Feuil3!M16,-1) -> 0 | N16: =ROUND(Feuil2!$C16/30*Feuil3!N16,-1) -> 0 | P16: 0
A17: =Feuil2!A17 -> 0 | B17: =Feuil2!B17 -> 0 | C17: =ROUND(Feuil2!C17/30*Feuil3!C17,-1) -> 0 | D17: =ROUND(Feuil2!C17/30*Feuil3!D17,-1) -> 0 | E17: =ROUND(Feuil2!$C17/30*Feuil3!E17,-1) -> 0 | F17: =ROUND(Feuil2!$C17/30*Feuil3!F17,-1) -> 0 | G17: =ROUND(Feuil2!$C17/30*Feuil3!G17,-1) -> 0 | H17: =ROUND(Feuil2!$C17/30*Feuil3!H17,-1) -> 0 | I17: =ROUND(Feuil2!$C17/30*Feuil3!I17,-1) -> 0 | J17: =ROUND(Feuil2!$C17/30*Feuil3!J17,-1) -> 0 | K17: =ROUND(Feuil2!$C17/30*Feuil3!K17,-1) -> 0 | L17: =ROUND(Feuil2!$C17/30*Feuil3!L17,-1) -> 0 | M17: =ROUND(Feuil2!$C17/30*Feuil3!M17,-1) -> 0 | N17: =ROUND(Feuil2!$C17/30*Feuil3!N17,-1) -> 0 | P17: 0
A18: =Feuil2!A18 -> 0 | B18: =Feuil2!B18 -> 0 | C18: =ROUND(Feuil2!C18/30*Feuil3!C18,-1) -> 0 | D18: =ROUND(Feuil2!C18/30*Feuil3!D18,-1) -> 0 | E18: =ROUND(Feuil2!$C18/30*Feuil3!E18,-1) -> 0 | F18: =ROUND(Feuil2!$C18/30*Feuil3!F18,-1) -> 0 | G18: =ROUND(Feuil2!$C18/30*Feuil3!G18,-1) -> 0 | H18: =ROUND(Feuil2!$C18/30*Feuil3!H18,-1) -> 0 | I18: =ROUND(Feuil2!$C18/30*Feuil3!I18,-1) -> 0 | J18: =ROUND(Feuil2!$C18/30*Feuil3!J18,-1) -> 0 | K18: =ROUND(Feuil2!$C18/30*Feuil3!K18,-1) -> 0 | L18: =ROUND(Feuil2!$C18/30*Feuil3!L18,-1) -> 0 | M18: =ROUND(Feuil2!$C18/30*Feuil3!M18,-1) -> 0 | N18: =ROUND(Feuil2!$C18/30*Feuil3!N18,-1) -> 0 | P18: 0
A19: =Feuil2!A19 -> 0 | B19: =Feuil2!B19 -> 0 | C19: =ROUND(Feuil2!C19/30*Feuil3!C19,-1) -> 0 | D19: =ROUND(Feuil2!C19/30*Feuil3!D19,-1) -> 0 | E19: =ROUND(Feuil2!$C19/30*Feuil3!E19,-1) -> 0 | F19: =ROUND(Feuil2!$C19/30*Feuil3!F19,-1) -> 0 | G19: =ROUND(Feuil2!$C19/30*Feuil3!G19,-1) -> 0 | H19: =ROUND(Feuil2!$C19/30*Feuil3!H19,-1) -> 0 | I19: =ROUND(Feuil2!$C19/30*Feuil3!I19,-1) -> 0 | J19: =ROUND(Feuil2!$C19/30*Feuil3!J19,-1) -> 0 | K19: =ROUND(Feuil2!$C19/30*Feuil3!K19,-1) -> 0 | L19: =ROUND(Feuil2!$C19/30*Feuil3!L19,-1) -> 0 | M19: =ROUND(Feuil2!$C19/30*Feuil3!M19,-1) -> 0 | N19: =ROUND(Feuil2!$C19/30*Feuil3!N19,-1) -> 0 | P19: 0
A20: =Feuil2!A20 -> 0 | B20: =Feuil2!B20 -> 0 | C20: =ROUND(Feuil2!C20/30*Feuil3!C20,-1) -> 0 | D20: =ROUND(Feuil2!C20/30*Feuil3!D20,-1) -> 0 | E20: =ROUND(Feuil2!$C20/30*Feuil3!E20,-1) -> 0 | F20: =ROUND(Feuil2!$C20/30*Feuil3!F20,-1) -> 0 | G20: =ROUND(Feuil2!$C20/30*Feuil3!G20,-1) -> 0 | H20: =ROUND(Feuil2!$C20/30*Feuil3!H20,-1) -> 0 | I20: =ROUND(Feuil2!$C20/30*Feuil3!I20,-1) -> 0 | J20: =ROUND(Feuil2!$C20/30*Feuil3!J20,-1) -> 0 | K20: =ROUND(Feuil2!$C20/30*Feuil3!K20,-1) -> 0 | L20: =ROUND(Feuil2!$C20/30*Feuil3!L20,-1) -> 0 | M20: =ROUND(Feuil2!$C20/30*Feuil3!M20,-1) -> 0 | N20: =ROUND(Feuil2!$C20/30*Feuil3!N20,-1) -> 0 | P20: 0
A21: =Feuil2!A21 -> 0 | B21: =Feuil2!B21 -> 0 | C21: =ROUND(Feuil2!C21/30*Feuil3!C21,-1) -> 0 | D21: =ROUND(Feuil2!C21/30*Feuil3!D21,-1) -> 0 | E21: =ROUND(Feuil2!$C21/30*Feuil3!E21,-1) -> 0 | F21: =ROUND(Feuil2!$C21/30*Feuil3!F21,-1) -> 0 | G21: =ROUND(Feuil2!$C21/30*Feuil3!G21,-1) -> 0 | H21: =ROUND(Feuil2!$C21/30*Feuil3!H21,-1) -> 0 | I21: =ROUND(Feuil2!$C21/30*Feuil3!I21,-1) -> 0 | J21: =ROUND(Feuil2!$C21/30*Feuil3!J21,-1) -> 0 | K21: =ROUND(Feuil2!$C21/30*Feuil3!K21,-1) -> 0 | L21: =ROUND(Feuil2!$C21/30*Feuil3!L21,-1) -> 0 | M21: =ROUND(Feuil2!$C21/30*Feuil3!M21,-1) -> 0 | N21: =ROUND(Feuil2!$C21/30*Feuil3!N21,-1) -> 0 | P21: 0
A22: =Feuil2!A22 -> 0 | B22: =Feuil2!B22 -> 0 | C22: =ROUND(Feuil2!C22/30*Feuil3!C22,-1) -> 0 | D22: =ROUND(Feuil2!C22/30*Feuil3!D22,-1) -> 0 | E22: =ROUND(Feuil2!$C22/30*Feuil3!E22,-1) -> 0 | F22: =ROUND(Feuil2!$C22/30*Feuil3!F22,-1) -> 0 | G22: =ROUND(Feuil2!$C22/30*Feuil3!G22,-1) -> 0 | H22: =ROUND(Feuil2!$C22/30*Feuil3!H22,-1) -> 0 | I22: =ROUND(Feuil2!$C22/30*Feuil3!I22,-1) -> 0 | J22: =ROUND(Feuil2!$C22/30*Feuil3!J22,-1) -> 0 | K22: =ROUND(Feuil2!$C22/30*Feuil3!K22,-1) -> 0 | L22: =ROUND(Feuil2!$C22/30*Feuil3!L22,-1) -> 0 | M22: =ROUND(Feuil2!$C22/30*Feuil3!M22,-1) -> 0 | N22: =ROUND(Feuil2!$C22/30*Feuil3!N22,-1) -> 0 | P22: 0
A23: =Feuil2!A23 -> 0 | B23: =Feuil2!B23 -> 0 | C23: =ROUND(Feuil2!C23/30*Feuil3!C23,-1) -> 0 | D23: =ROUND(Feuil2!C23/30*Feuil3!D23,-1) -> 0 | E23: =ROUND(Feuil2!$C23/30*Feuil3!E23,-1) -> 0 | F23: =ROUND(Feuil2!$C23/30*Feuil3!F23,-1) -> 0 | G23: =ROUND(Feuil2!$C23/30*Feuil3!G23,-1) -> 0 | H23: =ROUND(Feuil2!$C23/30*Feuil3!H23,-1) -> 0 | I23: =ROUND(Feuil2!$C23/30*Feuil3!I23,-1) -> 0 | J23: =ROUND(Feuil2!$C23/30*Feuil3!J23,-1) -> 0 | K23: =ROUND(Feuil2!$C23/30*Feuil3!K23,-1) -> 0 | L23: =ROUND(Feuil2!$C23/30*Feuil3!L23,-1) -> 0 | M23: =ROUND(Feuil2!$C23/30*Feuil3!M23,-1) -> 0 | N23: =ROUND(Feuil2!$C23/30*Feuil3!N23,-1) -> 0 | P23: 0
A24: =Feuil2!A24 -> 0 | B24: =Feuil2!B24 -> 0 | C24: =ROUND(Feuil2!C24/30*Feuil3!C24,-1) -> 0 | D24: =ROUND(Feuil2!C24/30*Feuil3!D24,-1) -> 0 | E24: =ROUND(Feuil2!$C24/30*Feuil3!E24,-1) -> 0 | F24: =ROUND(Feuil2!$C24/30*Feuil3!F24,-1) -> 0 | G24: =ROUND(Feuil2!$C24/30*Feuil3!G24,-1) -> 0 | H24: =ROUND(Feuil2!$C24/30*Feuil3!H24,-1) -> 0 | I24: =ROUND(Feuil2!$C24/30*Feuil3!I24,-1) -> 0 | J24: =ROUND(Feuil2!$C24/30*Feuil3!J24,-1) -> 0 | K24: =ROUND(Feuil2!$C24/30*Feuil3!K24,-1) -> 0 | L24: =ROUND(Feuil2!$C24/30*Feuil3!L24,-1) -> 0 | M24: =ROUND(Feuil2!$C24/30*Feuil3!M24,-1) -> 0 | N24: =ROUND(Feuil2!$C24/30*Feuil3!N24,-1) -> 0 | P24: 0
A25: =Feuil2!A25 -> 0 | B25: =Feuil2!B25 -> 0 | C25: =ROUND(Feuil2!C25/30*Feuil3!C25,-1) -> 0 | D25: =ROUND(Feuil2!C25/30*Feuil3!D25,-1) -> 0 | E25: =ROUND(Feuil2!$C25/30*Feuil3!E25,-1) -> 0 | F25: =ROUND(Feuil2!$C25/30*Feuil3!F25,-1) -> 0 | G25: =ROUND(Feuil2!$C25/30*Feuil3!G25,-1) -> 0 | H25: =ROUND(Feuil2!$C25/30*Feuil3!H25,-1) -> 0 | I25: =ROUND(Feuil2!$C25/30*Feuil3!I25,-1) -> 0 | J25: =ROUND(Feuil2!$C25/30*Feuil3!J25,-1) -> 0 | K25: =ROUND(Feuil2!$C25/30*Feuil3!K25,-1) -> 0 | L25: =ROUND(Feuil2!$C25/30*Feuil3!L25,-1) -> 0 | M25: =ROUND(Feuil2!$C25/30*Feuil3!M25,-1) -> 0 | N25: =ROUND(Feuil2!$C25/30*Feuil3!N25,-1) -> 0 | P25: 0
A26: =Feuil2!A26 -> 0 | B26: =Feuil2!B26 -> 0 | C26: =ROUND(Feuil2!C26/30*Feuil3!C26,-1) -> 0 | D26: =ROUND(Feuil2!C26/30*Feuil3!D26,-1) -> 0 | E26: =ROUND(Feuil2!$C26/30*Feuil3!E26,-1) -> 0 | F26: =ROUND(Feuil2!$C26/30*Feuil3!F26,-1) -> 0 | G26: =ROUND(Feuil2!$C26/30*Feuil3!G26,-1) -> 0 | H26: =ROUND(Feuil2!$C26/30*Feuil3!H26,-1) -> 0 | I26: =ROUND(Feuil2!$C26/30*Feuil3!I26,-1) -> 0 | J26: =ROUND(Feuil2!$C26/30*Feuil3!J26,-1) -> 0 | K26: =ROUND(Feuil2!$C26/30*Feuil3!K26,-1) -> 0 | L26: =ROUND(Feuil2!$C26/30*Feuil3!L26,-1) -> 0 | M26: =ROUND(Feuil2!$C26/30*Feuil3!M26,-1) -> 0 | N26: =ROUND(Feuil2!$C26/30*Feuil3!N26,-1) -> 0 | P26: 0
A27: =Feuil2!A27 -> 0 | B27: =Feuil2!B27 -> 0 | C27: =ROUND(Feuil2!C27/30*Feuil3!C27,-1) -> 0 | D27: =ROUND(Feuil2!C27/30*Feuil3!D27,-1) -> 0 | E27: =ROUND(Feuil2!$C27/30*Feuil3!E27,-1) -> 0 | F27: =ROUND(Feuil2!$C27/30*Feuil3!F27,-1) -> 0 | G27: =ROUND(Feuil2!$C27/30*Feuil3!G27,-1) -> 0 | H27: =ROUND(Feuil2!$C27/30*Feuil3!H27,-1) -> 0 | I27: =ROUND(Feuil2!$C27/30*Feuil3!I27,-1) -> 0 | J27: =ROUND(Feuil2!$C27/30*Feuil3!J27,-1) -> 0 | K27: =ROUND(Feuil2!$C27/30*Feuil3!K27,-1) -> 0 | L27: =ROUND(Feuil2!$C27/30*Feuil3!L27,-1) -> 0 | M27: =ROUND(Feuil2!$C27/30*Feuil3!M27,-1) -> 0 | N27: =ROUND(Feuil2!$C27/30*Feuil3!N27,-1) -> 0 | P27: 0
A28: =Feuil2!A28 -> 0 | B28: =Feuil2!B28 -> 0 | C28: =ROUND(Feuil2!C28/30*Feuil3!C28,-1) -> 0 | D28: =ROUND(Feuil2!C28/30*Feuil3!D28,-1) -> 0 | E28: =ROUND(Feuil2!$C28/30*Feuil3!E28,-1) -> 0 | F28: =ROUND(Feuil2!$C28/30*Feuil3!F28,-1) -> 0 | G28: =ROUND(Feuil2!$C28/30*Feuil3!G28,-1) -> 0 | H28: =ROUND(Feuil2!$C28/30*Feuil3!H28,-1) -> 0 | I28: =ROUND(Feuil2!$C28/30*Feuil3!I28,-1) -> 0 | J28: =ROUND(Feuil2!$C28/30*Feuil3!J28,-1) -> 0 | K28: =ROUND(Feuil2!$C28/30*Feuil3!K28,-1) -> 0 | L28: =ROUND(Feuil2!$C28/30*Feuil3!L28,-1) -> 0 | M28: =ROUND(Feuil2!$C28/30*Feuil3!M28,-1) -> 0 | N28: =ROUND(Feuil2!$C28/30*Feuil3!N28,-1) -> 0 | P28: 0
A29: =Feuil2!A29 -> 0 | B29: =Feuil2!B29 -> 0 | C29: =ROUND(Feuil2!C29/30*Feuil3!C29,-1) -> 0 | D29: =ROUND(Feuil2!C29/30*Feuil3!D29,-1) -> 0 | E29: =ROUND(Feuil2!$C29/30*Feuil3!E29,-1) -> 0 | F29: =ROUND(Feuil2!$C29/30*Feuil3!F29,-1) -> 0 | G29: =ROUND(Feuil2!$C29/30*Feuil3!G29,-1) -> 0 | H29: =ROUND(Feuil2!$C29/30*Feuil3!H29,-1) -> 0 | I29: =ROUND(Feuil2!$C29/30*Feuil3!I29,-1) -> 0 | J29: =ROUND(Feuil2!$C29/30*Feuil3!J29,-1) -> 0 | K29: =ROUND(Feuil2!$C29/30*Feuil3!K29,-1) -> 0 | L29: =ROUND(Feuil2!$C29/30*Feuil3!L29,-1) -> 0 | M29: =ROUND(Feuil2!$C29/30*Feuil3!M29,-1) -> 0 | N29: =ROUND(Feuil2!$C29/30*Feuil3!N29,-1) -> 0 | P29: 0
A30: =Feuil2!A30 -> 0 | B30: =Feuil2!B30 -> 0 | C30: =ROUND(Feuil2!C30/30*Feuil3!C30,-1) -> 0 | D30: =ROUND(Feuil2!C30/30*Feuil3!D30,-1) -> 0 | E30: =ROUND(Feuil2!$C30/30*Feuil3!E30,-1) -> 0 | F30: =ROUND(Feuil2!$C30/30*Feuil3!F30,-1) -> 0 | G30: =ROUND(Feuil2!$C30/30*Feuil3!G30,-1) -> 0 | H30: =ROUND(Feuil2!$C30/30*Feuil3!H30,-1) -> 0 | I30: =ROUND(Feuil2!$C30/30*Feuil3!I30,-1) -> 0 | J30: =ROUND(Feuil2!$C30/30*Feuil3!J30,-1) -> 0 | K30: =ROUND(Feuil2!$C30/30*Feuil3!K30,-1) -> 0 | L30: =ROUND(Feuil2!$C30/30*Feuil3!L30,-1) -> 0 | M30: =ROUND(Feuil2!$C30/30*Feuil3!M30,-1) -> 0 | N30: =ROUND(Feuil2!$C30/30*Feuil3!N30,-1) -> 0 | P30: 0
A31: =Feuil2!A31 -> 0 | B31: =Feuil2!B31 -> 0 | C31: =ROUND(Feuil2!C31/30*Feuil3!C31,-1) -> 0 | D31: =ROUND(Feuil2!C31/30*Feuil3!D31,-1) -> 0 | E31: =ROUND(Feuil2!$C31/30*Feuil3!E31,-1) -> 0 | F31: =ROUND(Feuil2!$C31/30*Feuil3!F31,-1) -> 0 | G31: =ROUND(Feuil2!$C31/30*Feuil3!G31,-1) -> 0 | H31: =ROUND(Feuil2!$C31/30*Feuil3!H31,-1) -> 0 | I31: =ROUND(Feuil2!$C31/30*Feuil3!I31,-1) -> 0 | J31: =ROUND(Feuil2!$C31/30*Feuil3!J31,-1) -> 0 | K31: =ROUND(Feuil2!$C31/30*Feuil3!K31,-1) -> 0 | L31: =ROUND(Feuil2!$C31/30*Feuil3!L31,-1) -> 0 | M31: =ROUND(Feuil2!$C31/30*Feuil3!M31,-1) -> 0 | N31: =ROUND(Feuil2!$C31/30*Feuil3!N31,-1) -> 0 | P31: 0
A32: =Feuil2!A32 -> 0 | B32: =Feuil2!B32 -> 0 | C32: =ROUND(Feuil2!C32/30*Feuil3!C32,-1) -> 0 | D32: =ROUND(Feuil2!C32/30*Feuil3!D32,-1) -> 0 | E32: =ROUND(Feuil2!$C32/30*Feuil3!E32,-1) -> 0 | F32: =ROUND(Feuil2!$C32/30*Feuil3!F32,-1) -> 0 | G32: =ROUND(Feuil2!$C32/30*Feuil3!G32,-1) -> 0 | H32: =ROUND(Feuil2!$C32/30*Feuil3!H32,-1) -> 0 | I32: =ROUND(Feuil2!$C32/30*Feuil3!I32,-1) -> 0 | J32: =ROUND(Feuil2!$C32/30*Feuil3!J32,-1) -> 0 | K32: =ROUND(Feuil2!$C32/30*Feuil3!K32,-1) -> 0 | L32: =ROUND(Feuil2!$C32/30*Feuil3!L32,-1) -> 0 | M32: =ROUND(Feuil2!$C32/30*Feuil3!M32,-1) -> 0 | N32: =ROUND(Feuil2!$C32/30*Feuil3!N32,-1) -> 0 | P32: 0
A33: =Feuil2!A33 -> 0 | B33: =Feuil2!B33 -> 0 | C33: =ROUND(Feuil2!C33/30*Feuil3!C33,-1) -> 0 | D33: =ROUND(Feuil2!C33/30*Feuil3!D33,-1) -> 0 | E33: =ROUND(Feuil2!$C33/30*Feuil3!E33,-1) -> 0 | F33: =ROUND(Feuil2!$C33/30*Feuil3!F33,-1) -> 0 | G33: =ROUND(Feuil2!$C33/30*Feuil3!G33,-1) -> 0 | H33: =ROUND(Feuil2!$C33/30*Feuil3!H33,-1) -> 0 | I33: =ROUND(Feuil2!$C33/30*Feuil3!I33,-1) -> 0 | J33: =ROUND(Feuil2!$C33/30*Feuil3!J33,-1) -> 0 | K33: =ROUND(Feuil2!$C33/30*Feuil3!K33,-1) -> 0 | L33: =ROUND(Feuil2!$C33/30*Feuil3!L33,-1) -> 0 | M33: =ROUND(Feuil2!$C33/30*Feuil3!M33,-1) -> 0 | N33: =ROUND(Feuil2!$C33/30*Feuil3!N33,-1) -> 0 | P33: 0
A34: =Feuil2!A34 -> 0 | B34: =Feuil2!B34 -> 0 | C34: =ROUND(Feuil2!C34/30*Feuil3!C34,-1) -> 0 | D34: =ROUND(Feuil2!C34/30*Feuil3!D34,-1) -> 0 | E34: =ROUND(Feuil2!$C34/30*Feuil3!E34,-1) -> 0 | F34: =ROUND(Feuil2!$C34/30*Feuil3!F34,-1) -> 0 | G34: =ROUND(Feuil2!$C34/30*Feuil3!G34,-1) -> 0 | H34: =ROUND(Feuil2!$C34/30*Feuil3!H34,-1) -> 0 | I34: =ROUND(Feuil2!$C34/30*Feuil3!I34,-1) -> 0 | J34: =ROUND(Feuil2!$C34/30*Feuil3!J34,-1) -> 0 | K34: =ROUND(Feuil2!$C34/30*Feuil3!K34,-1) -> 0 | L34: =ROUND(Feuil2!$C34/30*Feuil3!L34,-1) -> 0 | M34: =ROUND(Feuil2!$C34/30*Feuil3!M34,-1) -> 0 | N34: =ROUND(Feuil2!$C34/30*Feuil3!N34,-1) -> 0 | P34: 0
A35: =Feuil2!A35 -> 0 | B35: =Feuil2!B35 -> 0 | C35: =ROUND(Feuil2!C35/30*Feuil3!C35,-1) -> 0 | D35: =ROUND(Feuil2!C35/30*Feuil3!D35,-1) -> 0 | E35: =ROUND(Feuil2!$C35/30*Feuil3!E35,-1) -> 0 | F35: =ROUND(Feuil2!$C35/30*Feuil3!F35,-1) -> 0 | G35: =ROUND(Feuil2!$C35/30*Feuil3!G35,-1) -> 0 | H35: =ROUND(Feuil2!$C35/30*Feuil3!H35,-1) -> 0 | I35: =ROUND(Feuil2!$C35/30*Feuil3!I35,-1) -> 0 | J35: =ROUND(Feuil2!$C35/30*Feuil3!J35,-1) -> 0 | K35: =ROUND(Feuil2!$C35/30*Feuil3!K35,-1) -> 0 | L35: =ROUND(Feuil2!$C35/30*Feuil3!L35,-1) -> 0 | M35: =ROUND(Feuil2!$C35/30*Feuil3!M35,-1) -> 0 | N35: =ROUND(Feuil2!$C35/30*Feuil3!N35,-1) -> 0 | P35: 0
A36: =Feuil2!A36 -> 0 | B36: =Feuil2!B36 -> 0 | C36: =ROUND(Feuil2!C36/30*Feuil3!C36,-1) -> 0 | D36: =ROUND(Feuil2!C36/30*Feuil3!D36,-1) -> 0 | E36: =ROUND(Feuil2!$C36/30*Feuil3!E36,-1) -> 0 | F36: =ROUND(Feuil2!$C36/30*Feuil3!F36,-1) -> 0 | G36: =ROUND(Feuil2!$C36/30*Feuil3!G36,-1) -> 0 | H36: =ROUND(Feuil2!$C36/30*Feuil3!H36,-1) -> 0 | I36: =ROUND(Feuil2!$C36/30*Feuil3!I36,-1) -> 0 | J36: =ROUND(Feuil2!$C36/30*Feuil3!J36,-1) -> 0 | K36: =ROUND(Feuil2!$C36/30*Feuil3!K36,-1) -> 0 | L36: =ROUND(Feuil2!$C36/30*Feuil3!L36,-1) -> 0 | M36: =ROUND(Feuil2!$C36/30*Feuil3!M36,-1) -> 0 | N36: =ROUND(Feuil2!$C36/30*Feuil3!N36,-1) -> 0 | P36: 0
A37: =Feuil2!A37 -> 0 | B37: =Feuil2!B37 -> 0 | C37: =ROUND(Feuil2!C37/30*Feuil3!C37,-1) -> 0 | D37: =ROUND(Feuil2!C37/30*Feuil3!D37,-1) -> 0 | E37: =ROUND(Feuil2!$C37/30*Feuil3!E37,-1) -> 0 | F37: =ROUND(Feuil2!$C37/30*Feuil3!F37,-1) -> 0 | G37: =ROUND(Feuil2!$C37/30*Feuil3!G37,-1) -> 0 | H37: =ROUND(Feuil2!$C37/30*Feuil3!H37,-1) -> 0 | I37: =ROUND(Feuil2!$C37/30*Feuil3!I37,-1) -> 0 | J37: =ROUND(Feuil2!$C37/30*Feuil3!J37,-1) -> 0 | K37: =ROUND(Feuil2!$C37/30*Feuil3!K37,-1) -> 0 | L37: =ROUND(Feuil2!$C37/30*Feuil3!L37,-1) -> 0 | M37: =ROUND(Feuil2!$C37/30*Feuil3!M37,-1) -> 0 | N37: =ROUND(Feuil2!$C37/30*Feuil3!N37,-1) -> 0 | P37: 0
A38: =Feuil2!A38 -> 0 | B38: =Feuil2!B38 -> 0 | C38: =ROUND(Feuil2!C38/30*Feuil3!C38,-1) -> 0 | D38: =ROUND(Feuil2!C38/30*Feuil3!D38,-1) -> 0 | E38: =ROUND(Feuil2!$C38/30*Feuil3!E38,-1) -> 0 | F38: =ROUND(Feuil2!$C38/30*Feuil3!F38,-1) -> 0 | G38: =ROUND(Feuil2!$C38/30*Feuil3!G38,-1) -> 0 | H38: =ROUND(Feuil2!$C38/30*Feuil3!H38,-1) -> 0 | I38: =ROUND(Feuil2!$C38/30*Feuil3!I38,-1) -> 0 | J38: =ROUND(Feuil2!$C38/30*Feuil3!J38,-1) -> 0 | K38: =ROUND(Feuil2!$C38/30*Feuil3!K38,-1) -> 0 | L38: =ROUND(Feuil2!$C38/30*Feuil3!L38,-1) -> 0 | M38: =ROUND(Feuil2!$C38/30*Feuil3!M38,-1) -> 0 | N38: =ROUND(Feuil2!$C38/30*Feuil3!N38,-1) -> 0 | P38: 0
A39: =Feuil2!A39 -> 0 | B39: =Feuil2!B39 -> 0 | C39: =ROUND(Feuil2!C39/30*Feuil3!C39,-1) -> 0 | D39: =ROUND(Feuil2!C39/30*Feuil3!D39,-1) -> 0 | E39: =ROUND(Feuil2!$C39/30*Feuil3!E39,-1) -> 0 | F39: =ROUND(Feuil2!$C39/30*Feuil3!F39,-1) -> 0 | G39: =ROUND(Feuil2!$C39/30*Feuil3!G39,-1) -> 0 | H39: =ROUND(Feuil2!$C39/30*Feuil3!H39,-1) -> 0 | I39: =ROUND(Feuil2!$C39/30*Feuil3!I39,-1) -> 0 | J39: =ROUND(Feuil2!$C39/30*Feuil3!J39,-1) -> 0 | K39: =ROUND(Feuil2!$C39/30*Feuil3!K39,-1) -> 0 | L39: =ROUND(Feuil2!$C39/30*Feuil3!L39,-1) -> 0 | M39: =ROUND(Feuil2!$C39/30*Feuil3!M39,-1) -> 0 | N39: =ROUND(Feuil2!$C39/30*Feuil3!N39,-1) -> 0 | P39: 0
A40: =Feuil2!A40 -> 0 | B40: =Feuil2!B40 -> 0 | C40: =ROUND(Feuil2!C40/30*Feuil3!C40,-1) -> 0 | D40: =ROUND(Feuil2!C40/30*Feuil3!D40,-1) -> 0 | E40: =ROUND(Feuil2!$C40/30*Feuil3!E40,-1) -> 0 | F40: =ROUND(Feuil2!$C40/30*Feuil3!F40,-1) -> 0 | G40: =ROUND(Feuil2!$C40/30*Feuil3!G40,-1) -> 0 | H40: =ROUND(Feuil2!$C40/30*Feuil3!H40,-1) -> 0 | I40: =ROUND(Feuil2!$C40/30*Feuil3!I40,-1) -> 0 | J40: =ROUND(Feuil2!$C40/30*Feuil3!J40,-1) -> 0 | K40: =ROUND(Feuil2!$C40/30*Feuil3!K40,-1) -> 0 | L40: =ROUND(Feuil2!$C40/30*Feuil3!L40,-1) -> 0 | M40: =ROUND(Feuil2!$C40/30*Feuil3!M40,-1) -> 0 | N40: =ROUND(Feuil2!$C40/30*Feuil3!N40,-1) -> 0 | P40: 0
A41: =Feuil2!A41 -> 0 | B41: =Feuil2!B41 -> 0 | C41: =ROUND(Feuil2!C41/30*Feuil3!C41,-1) -> 0 | D41: =ROUND(Feuil2!C41/30*Feuil3!D41,-1) -> 0 | E41: =ROUND(Feuil2!$C41/30*Feuil3!E41,-1) -> 0 | F41: =ROUND(Feuil2!$C41/30*Feuil3!F41,-1) -> 0 | G41: =ROUND(Feuil2!$C41/30*Feuil3!G41,-1) -> 0 | H41: =ROUND(Feuil2!$C41/30*Feuil3!H41,-1) -> 0 | I41: =ROUND(Feuil2!$C41/30*Feuil3!I41,-1) -> 0 | J41: =ROUND(Feuil2!$C41/30*Feuil3!J41,-1) -> 0 | K41: =ROUND(Feuil2!$C41/30*Feuil3!K41,-1) -> 0 | L41: =ROUND(Feuil2!$C41/30*Feuil3!L41,-1) -> 0 | M41: =ROUND(Feuil2!$C41/30*Feuil3!M41,-1) -> 0 | N41: =ROUND(Feuil2!$C41/30*Feuil3!N41,-1) -> 0 | P41: 0
A42: =Feuil2!A42 -> 0 | B42: =Feuil2!B42 -> 0 | C42: =ROUND(Feuil2!C42/30*Feuil3!C42,-1) -> 0 | D42: =ROUND(Feuil2!C42/30*Feuil3!D42,-1) -> 0 | E42: =ROUND(Feuil2!$C42/30*Feuil3!E42,-1) -> 0 | F42: =ROUND(Feuil2!$C42/30*Feuil3!F42,-1) -> 0 | G42: =ROUND(Feuil2!$C42/30*Feuil3!G42,-1) -> 0 | H42: =ROUND(Feuil2!$C42/30*Feuil3!H42,-1) -> 0 | I42: =ROUND(Feuil2!$C42/30*Feuil3!I42,-1) -> 0 | J42: =ROUND(Feuil2!$C42/30*Feuil3!J42,-1) -> 0 | K42: =ROUND(Feuil2!$C42/30*Feuil3!K42,-1) -> 0 | L42: =ROUND(Feuil2!$C42/30*Feuil3!L42,-1) -> 0 | M42: =ROUND(Feuil2!$C42/30*Feuil3!M42,-1) -> 0 | N42: =ROUND(Feuil2!$C42/30*Feuil3!N42,-1) -> 0 | P42: 0
A43: =Feuil2!A43 -> 0 | B43: =Feuil2!B43 -> 0 | C43: =ROUND(Feuil2!C43/30*Feuil3!C43,-1) -> 0 | D43: =ROUND(Feuil2!C43/30*Feuil3!D43,-1) -> 0 | E43: =ROUND(Feuil2!$C43/30*Feuil3!E43,-1) -> 0 | F43: =ROUND(Feuil2!$C43/30*Feuil3!F43,-1) -> 0 | G43: =ROUND(Feuil2!$C43/30*Feuil3!G43,-1) -> 0 | H43: =ROUND(Feuil2!$C43/30*Feuil3!H43,-1) -> 0 | I43: =ROUND(Feuil2!$C43/30*Feuil3!I43,-1) -> 0 | J43: =ROUND(Feuil2!$C43/30*Feuil3!J43,-1) -> 0 | K43: =ROUND(Feuil2!$C43/30*Feuil3!K43,-1) -> 0 | L43: =ROUND(Feuil2!$C43/30*Feuil3!L43,-1) -> 0 | M43: =ROUND(Feuil2!$C43/30*Feuil3!M43,-1) -> 0 | N43: =ROUND(Feuil2!$C43/30*Feuil3!N43,-1) -> 0 | P43: 0
A44: =Feuil2!A44 -> 0 | B44: =Feuil2!B44 -> 0 | C44: =ROUND(Feuil2!C44/30*Feuil3!C44,-1) -> 0 | D44: =ROUND(Feuil2!C44/30*Feuil3!D44,-1) -> 0 | E44: =ROUND(Feuil2!$C44/30*Feuil3!E44,-1) -> 0 | F44: =ROUND(Feuil2!$C44/30*Feuil3!F44,-1) -> 0 | G44: =ROUND(Feuil2!$C44/30*Feuil3!G44,-1) -> 0 | H44: =ROUND(Feuil2!$C44/30*Feuil3!H44,-1) -> 0 | I44: =ROUND(Feuil2!$C44/30*Feuil3!I44,-1) -> 0 | J44: =ROUND(Feuil2!$C44/30*Feuil3!J44,-1) -> 0 | K44: =ROUND(Feuil2!$C44/30*Feuil3!K44,-1) -> 0 | L44: =ROUND(Feuil2!$C44/30*Feuil3!L44,-1) -> 0 | M44: =ROUND(Feuil2!$C44/30*Feuil3!M44,-1) -> 0 | N44: =ROUND(Feuil2!$C44/30*Feuil3!N44,-1) -> 0 | P44: 0
A45: =Feuil2!A45 -> 0 | B45: =Feuil2!B45 -> 0 | C45: =ROUND(Feuil2!C45/30*Feuil3!C45,-1) -> 0 | D45: =ROUND(Feuil2!C45/30*Feuil3!D45,-1) -> 0 | E45: =ROUND(Feuil2!$C45/30*Feuil3!E45,-1) -> 0 | F45: =ROUND(Feuil2!$C45/30*Feuil3!F45,-1) -> 0 | G45: =ROUND(Feuil2!$C45/30*Feuil3!G45,-1) -> 0 | H45: =ROUND(Feuil2!$C45/30*Feuil3!H45,-1) -> 0 | I45: =ROUND(Feuil2!$C45/30*Feuil3!I45,-1) -> 0 | J45: =ROUND(Feuil2!$C45/30*Feuil3!J45,-1) -> 0 | K45: =ROUND(Feuil2!$C45/30*Feuil3!K45,-1) -> 0 | L45: =ROUND(Feuil2!$C45/30*Feuil3!L45,-1) -> 0 | M45: =ROUND(Feuil2!$C45/30*Feuil3!M45,-1) -> 0 | N45: =ROUND(Feuil2!$C45/30*Feuil3!N45,-1) -> 0 | P45: 0
A46: =Feuil2!A46 -> 0 | B46: =Feuil2!B46 -> 0 | C46: =ROUND(Feuil2!C46/30*Feuil3!C46,-1) -> 0 | D46: =ROUND(Feuil2!C46/30*Feuil3!D46,-1) -> 0 | E46: =ROUND(Feuil2!$C46/30*Feuil3!E46,-1) -> 0 | F46: =ROUND(Feuil2!$C46/30*Feuil3!F46,-1) -> 0 | G46: =ROUND(Feuil2!$C46/30*Feuil3!G46,-1) -> 0 | H46: =ROUND(Feuil2!$C46/30*Feuil3!H46,-1) -> 0 | I46: =ROUND(Feuil2!$C46/30*Feuil3!I46,-1) -> 0 | J46: =ROUND(Feuil2!$C46/30*Feuil3!J46,-1) -> 0 | K46: =ROUND(Feuil2!$C46/30*Feuil3!K46,-1) -> 0 | L46: =ROUND(Feuil2!$C46/30*Feuil3!L46,-1) -> 0 | M46: =ROUND(Feuil2!$C46/30*Feuil3!M46,-1) -> 0 | N46: =ROUND(Feuil2!$C46/30*Feuil3!N46,-1) -> 0 | P46: 0
A47: =Feuil2!A47 -> 0 | B47: =Feuil2!B47 -> 0 | C47: =ROUND(Feuil2!C47/30*Feuil3!C47,-1) -> 0 | D47: =ROUND(Feuil2!C47/30*Feuil3!D47,-1) -> 0 | E47: =ROUND(Feuil2!$C47/30*Feuil3!E47,-1) -> 0 | F47: =ROUND(Feuil2!$C47/30*Feuil3!F47,-1) -> 0 | G47: =ROUND(Feuil2!$C47/30*Feuil3!G47,-1) -> 0 | H47: =ROUND(Feuil2!$C47/30*Feuil3!H47,-1) -> 0 | I47: =ROUND(Feuil2!$C47/30*Feuil3!I47,-1) -> 0 | J47: =ROUND(Feuil2!$C47/30*Feuil3!J47,-1) -> 0 | K47: =ROUND(Feuil2!$C47/30*Feuil3!K47,-1) -> 0 | L47: =ROUND(Feuil2!$C47/30*Feuil3!L47,-1) -> 0 | M47: =ROUND(Feuil2!$C47/30*Feuil3!M47,-1) -> 0 | N47: =ROUND(Feuil2!$C47/30*Feuil3!N47,-1) -> 0 | P47: 0
A48: =Feuil2!A48 -> 0 | B48: =Feuil2!B48 -> 0 | C48: =ROUND(Feuil2!C48/30*Feuil3!C48,-1) -> 0 | D48: =ROUND(Feuil2!C48/30*Feuil3!D48,-1) -> 0 | E48: =ROUND(Feuil2!$C48/30*Feuil3!E48,-1) -> 0 | F48: =ROUND(Feuil2!$C48/30*Feuil3!F48,-1) -> 0 | G48: =ROUND(Feuil2!$C48/30*Feuil3!G48,-1) -> 0 | H48: =ROUND(Feuil2!$C48/30*Feuil3!H48,-1) -> 0 | I48: =ROUND(Feuil2!$C48/30*Feuil3!I48,-1) -> 0 | J48: =ROUND(Feuil2!$C48/30*Feuil3!J48,-1) -> 0 | K48: =ROUND(Feuil2!$C48/30*Feuil3!K48,-1) -> 0 | L48: =ROUND(Feuil2!$C48/30*Feuil3!L48,-1) -> 0 | M48: =ROUND(Feuil2!$C48/30*Feuil3!M48,-1) -> 0 | N48: =ROUND(Feuil2!$C48/30*Feuil3!N48,-1) -> 0 | P48: 0
A49: =Feuil2!A49 -> 0 | B49: =Feuil2!B49 -> 0 | C49: =ROUND(Feuil2!C49/30*Feuil3!C49,-1) -> 0 | D49: =ROUND(Feuil2!C49/30*Feuil3!D49,-1) -> 0 | E49: =ROUND(Feuil2!$C49/30*Feuil3!E49,-1) -> 0 | F49: =ROUND(Feuil2!$C49/30*Feuil3!F49,-1) -> 0 | G49: =ROUND(Feuil2!$C49/30*Feuil3!G49,-1) -> 0 | H49: =ROUND(Feuil2!$C49/30*Feuil3!H49,-1) -> 0 | I49: =ROUND(Feuil2!$C49/30*Feuil3!I49,-1) -> 0 | J49: =ROUND(Feuil2!$C49/30*Feuil3!J49,-1) -> 0 | K49: =ROUND(Feuil2!$C49/30*Feuil3!K49,-1) -> 0 | L49: =ROUND(Feuil2!$C49/30*Feuil3!L49,-1) -> 0 | M49: =ROUND(Feuil2!$C49/30*Feuil3!M49,-1) -> 0 | N49: =ROUND(Feuil2!$C49/30*Feuil3!N49,-1) -> 0 | P49: 0
A50: =Feuil2!A50 -> 0 | B50: =Feuil2!B50 -> 0 | C50: =ROUND(Feuil2!C50/30*Feuil3!C50,-1) -> 0 | D50: =ROUND(Feuil2!C50/30*Feuil3!D50,-1) -> 0 | E50: =ROUND(Feuil2!$C50/30*Feuil3!E50,-1) -> 0 | F50: =ROUND(Feuil2!$C50/30*Feuil3!F50,-1) -> 0 | G50: =ROUND(Feuil2!$C50/30*Feuil3!G50,-1) -> 0 | H50: =ROUND(Feuil2!$C50/30*Feuil3!H50,-1) -> 0 | I50: =ROUND(Feuil2!$C50/30*Feuil3!I50,-1) -> 0 | J50: =ROUND(Feuil2!$C50/30*Feuil3!J50,-1) -> 0 | K50: =ROUND(Feuil2!$C50/30*Feuil3!K50,-1) -> 0 | L50: =ROUND(Feuil2!$C50/30*Feuil3!L50,-1) -> 0 | M50: =ROUND(Feuil2!$C50/30*Feuil3!M50,-1) -> 0 | N50: =ROUND(Feuil2!$C50/30*Feuil3!N50,-1) -> 0 | P50: 0
A51: =Feuil2!A51 -> 0 | B51: =Feuil2!B51 -> 0 | C51: =ROUND(Feuil2!C51/30*Feuil3!C51,-1) -> 0 | D51: =ROUND(Feuil2!C51/30*Feuil3!D51,-1) -> 0 | E51: =ROUND(Feuil2!$C51/30*Feuil3!E51,-1) -> 0 | F51: =ROUND(Feuil2!$C51/30*Feuil3!F51,-1) -> 0 | G51: =ROUND(Feuil2!$C51/30*Feuil3!G51,-1) -> 0 | H51: =ROUND(Feuil2!$C51/30*Feuil3!H51,-1) -> 0 | I51: =ROUND(Feuil2!$C51/30*Feuil3!I51,-1) -> 0 | J51: =ROUND(Feuil2!$C51/30*Feuil3!J51,-1) -> 0 | K51: =ROUND(Feuil2!$C51/30*Feuil3!K51,-1) -> 0 | L51: =ROUND(Feuil2!$C51/30*Feuil3!L51,-1) -> 0 | M51: =ROUND(Feuil2!$C51/30*Feuil3!M51,-1) -> 0 | N51: =ROUND(Feuil2!$C51/30*Feuil3!N51,-1) -> 0 | P51: 0
A52: =Feuil2!A52 -> 0 | B52: =Feuil2!B52 -> 0 | C52: =ROUND(Feuil2!C52/30*Feuil3!C52,-1) -> 0 | D52: =ROUND(Feuil2!C52/30*Feuil3!D52,-1) -> 0 | E52: =ROUND(Feuil2!$C52/30*Feuil3!E52,-1) -> 0 | F52: =ROUND(Feuil2!$C52/30*Feuil3!F52,-1) -> 0 | G52: =ROUND(Feuil2!$C52/30*Feuil3!G52,-1) -> 0 | H52: =ROUND(Feuil2!$C52/30*Feuil3!H52,-1) -> 0 | I52: =ROUND(Feuil2!$C52/30*Feuil3!I52,-1) -> 0 | J52: =ROUND(Feuil2!$C52/30*Feuil3!J52,-1) -> 0 | K52: =ROUND(Feuil2!$C52/30*Feuil3!K52,-1) -> 0 | L52: =ROUND(Feuil2!$C52/30*Feuil3!L52,-1) -> 0 | M52: =ROUND(Feuil2!$C52/30*Feuil3!M52,-1) -> 0 | N52: =ROUND(Feuil2!$C52/30*Feuil3!N52,-1) -> 0 | P52: 0
A53: =Feuil2!A53 -> 0 | B53: =Feuil2!B53 -> 0 | C53: =ROUND(Feuil2!C53/30*Feuil3!C53,-1) -> 0 | D53: =ROUND(Feuil2!C53/30*Feuil3!D53,-1) -> 0 | E53: =ROUND(Feuil2!$C53/30*Feuil3!E53,-1) -> 0 | F53: =ROUND(Feuil2!$C53/30*Feuil3!F53,-1) -> 0 | G53: =ROUND(Feuil2!$C53/30*Feuil3!G53,-1) -> 0 | H53: =ROUND(Feuil2!$C53/30*Feuil3!H53,-1) -> 0 | I53: =ROUND(Feuil2!$C53/30*Feuil3!I53,-1) -> 0 | J53: =ROUND(Feuil2!$C53/30*Feuil3!J53,-1) -> 0 | K53: =ROUND(Feuil2!$C53/30*Feuil3!K53,-1) -> 0 | L53: =ROUND(Feuil2!$C53/30*Feuil3!L53,-1) -> 0 | M53: =ROUND(Feuil2!$C53/30*Feuil3!M53,-1) -> 0 | N53: =ROUND(Feuil2!$C53/30*Feuil3!N53,-1) -> 0 | P53: 0
A54: =Feuil2!A54 -> 0 | B54: =Feuil2!B54 -> 0 | C54: =ROUND(Feuil2!C54/30*Feuil3!C54,-1) -> 0 | D54: =ROUND(Feuil2!C54/30*Feuil3!D54,-1) -> 0 | E54: =ROUND(Feuil2!$C54/30*Feuil3!E54,-1) -> 0 | F54: =ROUND(Feuil2!$C54/30*Feuil3!F54,-1) -> 0 | G54: =ROUND(Feuil2!$C54/30*Feuil3!G54,-1) -> 0 | H54: =ROUND(Feuil2!$C54/30*Feuil3!H54,-1) -> 0 | I54: =ROUND(Feuil2!$C54/30*Feuil3!I54,-1) -> 0 | J54: =ROUND(Feuil2!$C54/30*Feuil3!J54,-1) -> 0 | K54: =ROUND(Feuil2!$C54/30*Feuil3!K54,-1) -> 0 | L54: =ROUND(Feuil2!$C54/30*Feuil3!L54,-1) -> 0 | M54: =ROUND(Feuil2!$C54/30*Feuil3!M54,-1) -> 0 | N54: =ROUND(Feuil2!$C54/30*Feuil3!N54,-1) -> 0 | P54: 0
A55: =Feuil2!A55 -> 0 | B55: =Feuil2!B55 -> 0 | C55: =ROUND(Feuil2!C55/30*Feuil3!C55,-1) -> 0 | D55: =ROUND(Feuil2!C55/30*Feuil3!D55,-1) -> 0 | E55: =ROUND(Feuil2!$C55/30*Feuil3!E55,-1) -> 0 | F55: =ROUND(Feuil2!$C55/30*Feuil3!F55,-1) -> 0 | G55: =ROUND(Feuil2!$C55/30*Feuil3!G55,-1) -> 0 | H55: =ROUND(Feuil2!$C55/30*Feuil3!H55,-1) -> 0 | I55: =ROUND(Feuil2!$C55/30*Feuil3!I55,-1) -> 0 | J55: =ROUND(Feuil2!$C55/30*Feuil3!J55,-1) -> 0 | K55: =ROUND(Feuil2!$C55/30*Feuil3!K55,-1) -> 0 | L55: =ROUND(Feuil2!$C55/30*Feuil3!L55,-1) -> 0 | M55: =ROUND(Feuil2!$C55/30*Feuil3!M55,-1) -> 0 | N55: =ROUND(Feuil2!$C55/30*Feuil3!N55,-1) -> 0 | P55: 0
A56: =Feuil2!A56 -> 0 | B56: =Feuil2!B56 -> 0 | C56: =ROUND(Feuil2!C56/30*Feuil3!C56,-1) -> 0 | D56: =ROUND(Feuil2!C56/30*Feuil3!D56,-1) -> 0 | E56: =ROUND(Feuil2!$C56/30*Feuil3!E56,-1) -> 0 | F56: =ROUND(Feuil2!$C56/30*Feuil3!F56,-1) -> 0 | G56: =ROUND(Feuil2!$C56/30*Feuil3!G56,-1) -> 0 | H56: =ROUND(Feuil2!$C56/30*Feuil3!H56,-1) -> 0 | I56: =ROUND(Feuil2!$C56/30*Feuil3!I56,-1) -> 0 | J56: =ROUND(Feuil2!$C56/30*Feuil3!J56,-1) -> 0 | K56: =ROUND(Feuil2!$C56/30*Feuil3!K56,-1) -> 0 | L56: =ROUND(Feuil2!$C56/30*Feuil3!L56,-1) -> 0 | M56: =ROUND(Feuil2!$C56/30*Feuil3!M56,-1) -> 0 | N56: =ROUND(Feuil2!$C56/30*Feuil3!N56,-1) -> 0 | P56: 0
A57: =Feuil2!A57 -> 0 | B57: =Feuil2!B57 -> 0 | C57: =ROUND(Feuil2!C57/30*Feuil3!C57,-1) -> 0 | D57: =ROUND(Feuil2!C57/30*Feuil3!D57,-1) -> 0 | E57: =ROUND(Feuil2!$C57/30*Feuil3!E57,-1) -> 0 | F57: =ROUND(Feuil2!$C57/30*Feuil3!F57,-1) -> 0 | G57: =ROUND(Feuil2!$C57/30*Feuil3!G57,-1) -> 0 | H57: =ROUND(Feuil2!$C57/30*Feuil3!H57,-1) -> 0 | I57: =ROUND(Feuil2!$C57/30*Feuil3!I57,-1) -> 0 | J57: =ROUND(Feuil2!$C57/30*Feuil3!J57,-1) -> 0 | K57: =ROUND(Feuil2!$C57/30*Feuil3!K57,-1) -> 0 | L57: =ROUND(Feuil2!$C57/30*Feuil3!L57,-1) -> 0 | M57: =ROUND(Feuil2!$C57/30*Feuil3!M57,-1) -> 0 | N57: =ROUND(Feuil2!$C57/30*Feuil3!N57,-1) -> 0 | P57: 0
A58: =Feuil2!A58 -> 0 | B58: =Feuil2!B58 -> 0 | C58: =ROUND(Feuil2!C58/30*Feuil3!C58,-1) -> 0 | D58: =ROUND(Feuil2!C58/30*Feuil3!D58,-1) -> 0 | E58: =ROUND(Feuil2!$C58/30*Feuil3!E58,-1) -> 0 | F58: =ROUND(Feuil2!$C58/30*Feuil3!F58,-1) -> 0 | G58: =ROUND(Feuil2!$C58/30*Feuil3!G58,-1) -> 0 | H58: =ROUND(Feuil2!$C58/30*Feuil3!H58,-1) -> 0 | I58: =ROUND(Feuil2!$C58/30*Feuil3!I58,-1) -> 0 | J58: =ROUND(Feuil2!$C58/30*Feuil3!J58,-1) -> 0 | K58: =ROUND(Feuil2!$C58/30*Feuil3!K58,-1) -> 0 | L58: =ROUND(Feuil2!$C58/30*Feuil3!L58,-1) -> 0 | M58: =ROUND(Feuil2!$C58/30*Feuil3!M58,-1) -> 0 | N58: =ROUND(Feuil2!$C58/30*Feuil3!N58,-1) -> 0 | P58: 0
A59: =Feuil2!A59 -> 0 | B59: =Feuil2!B59 -> 0 | C59: =ROUND(Feuil2!C59/30*Feuil3!C59,-1) -> 0 | D59: =ROUND(Feuil2!C59/30*Feuil3!D59,-1) -> 0 | E59: =ROUND(Feuil2!$C59/30*Feuil3!E59,-1) -> 0 | F59: =ROUND(Feuil2!$C59/30*Feuil3!F59,-1) -> 0 | G59: =ROUND(Feuil2!$C59/30*Feuil3!G59,-1) -> 0 | H59: =ROUND(Feuil2!$C59/30*Feuil3!H59,-1) -> 0 | I59: =ROUND(Feuil2!$C59/30*Feuil3!I59,-1) -> 0 | J59: =ROUND(Feuil2!$C59/30*Feuil3!J59,-1) -> 0 | K59: =ROUND(Feuil2!$C59/30*Feuil3!K59,-1) -> 0 | L59: =ROUND(Feuil2!$C59/30*Feuil3!L59,-1) -> 0 | M59: =ROUND(Feuil2!$C59/30*Feuil3!M59,-1) -> 0 | N59: =ROUND(Feuil2!$C59/30*Feuil3!N59,-1) -> 0 | P59: 0
A60: =Feuil2!A60 -> 0 | B60: =Feuil2!B60 -> 0 | C60: =ROUND(Feuil2!C60/30*Feuil3!C60,-1) -> 0 | D60: =ROUND(Feuil2!C60/30*Feuil3!D60,-1) -> 0 | E60: =ROUND(Feuil2!$C60/30*Feuil3!E60,-1) -> 0 | F60: =ROUND(Feuil2!$C60/30*Feuil3!F60,-1) -> 0 | G60: =ROUND(Feuil2!$C60/30*Feuil3!G60,-1) -> 0 | H60: =ROUND(Feuil2!$C60/30*Feuil3!H60,-1) -> 0 | I60: =ROUND(Feuil2!$C60/30*Feuil3!I60,-1) -> 0 | J60: =ROUND(Feuil2!$C60/30*Feuil3!J60,-1) -> 0 | K60: =ROUND(Feuil2!$C60/30*Feuil3!K60,-1) -> 0 | L60: =ROUND(Feuil2!$C60/30*Feuil3!L60,-1) -> 0 | M60: =ROUND(Feuil2!$C60/30*Feuil3!M60,-1) -> 0 | N60: =ROUND(Feuil2!$C60/30*Feuil3!N60,-1) -> 0 | P60: 0
A61: =Feuil2!A61 -> 0 | B61: =Feuil2!B61 -> 0 | C61: =ROUND(Feuil2!C61/30*Feuil3!C61,-1) -> 0 | D61: =ROUND(Feuil2!C61/30*Feuil3!D61,-1) -> 0 | E61: =ROUND(Feuil2!$C61/30*Feuil3!E61,-1) -> 0 | F61: =ROUND(Feuil2!$C61/30*Feuil3!F61,-1) -> 0 | G61: =ROUND(Feuil2!$C61/30*Feuil3!G61,-1) -> 0 | H61: =ROUND(Feuil2!$C61/30*Feuil3!H61,-1) -> 0 | I61: =ROUND(Feuil2!$C61/30*Feuil3!I61,-1) -> 0 | J61: =ROUND(Feuil2!$C61/30*Feuil3!J61,-1) -> 0 | K61: =ROUND(Feuil2!$C61/30*Feuil3!K61,-1) -> 0 | L61: =ROUND(Feuil2!$C61/30*Feuil3!L61,-1) -> 0 | M61: =ROUND(Feuil2!$C61/30*Feuil3!M61,-1) -> 0 | N61: =ROUND(Feuil2!$C61/30*Feuil3!N61,-1) -> 0 | P61: 0
A62: =Feuil2!A62 -> 0 | B62: =Feuil2!B62 -> 0 | C62: =ROUND(Feuil2!C62/30*Feuil3!C62,-1) -> 0 | D62: =ROUND(Feuil2!C62/30*Feuil3!D62,-1) -> 0 | E62: =ROUND(Feuil2!$C62/30*Feuil3!E62,-1) -> 0 | F62: =ROUND(Feuil2!$C62/30*Feuil3!F62,-1) -> 0 | G62: =ROUND(Feuil2!$C62/30*Feuil3!G62,-1) -> 0 | H62: =ROUND(Feuil2!$C62/30*Feuil3!H62,-1) -> 0 | I62: =ROUND(Feuil2!$C62/30*Feuil3!I62,-1) -> 0 | J62: =ROUND(Feuil2!$C62/30*Feuil3!J62,-1) -> 0 | K62: =ROUND(Feuil2!$C62/30*Feuil3!K62,-1) -> 0 | L62: =ROUND(Feuil2!$C62/30*Feuil3!L62,-1) -> 0 | M62: =ROUND(Feuil2!$C62/30*Feuil3!M62,-1) -> 0 | N62: =ROUND(Feuil2!$C62/30*Feuil3!N62,-1) -> 0 | P62: 0
A63: =Feuil2!A63 -> 0 | B63: =Feuil2!B63 -> 0 | C63: =ROUND(Feuil2!C63/30*Feuil3!C63,-1) -> 0 | D63: =ROUND(Feuil2!C63/30*Feuil3!D63,-1) -> 0 | E63: =ROUND(Feuil2!$C63/30*Feuil3!E63,-1) -> 0 | F63: =ROUND(Feuil2!$C63/30*Feuil3!F63,-1) -> 0 | G63: =ROUND(Feuil2!$C63/30*Feuil3!G63,-1) -> 0 | H63: =ROUND(Feuil2!$C63/30*Feuil3!H63,-1) -> 0 | I63: =ROUND(Feuil2!$C63/30*Feuil3!I63,-1) -> 0 | J63: =ROUND(Feuil2!$C63/30*Feuil3!J63,-1) -> 0 | K63: =ROUND(Feuil2!$C63/30*Feuil3!K63,-1) -> 0 | L63: =ROUND(Feuil2!$C63/30*Feuil3!L63,-1) -> 0 | M63: =ROUND(Feuil2!$C63/30*Feuil3!M63,-1) -> 0 | N63: =ROUND(Feuil2!$C63/30*Feuil3!N63,-1) -> 0 | P63: 0
A64: =Feuil2!A64 -> 0 | B64: =Feuil2!B64 -> 0 | C64: =ROUND(Feuil2!C64/30*Feuil3!C64,-1) -> 0 | D64: =ROUND(Feuil2!C64/30*Feuil3!D64,-1) -> 0 | E64: =ROUND(Feuil2!$C64/30*Feuil3!E64,-1) -> 0 | F64: =ROUND(Feuil2!$C64/30*Feuil3!F64,-1) -> 0 | G64: =ROUND(Feuil2!$C64/30*Feuil3!G64,-1) -> 0 | H64: =ROUND(Feuil2!$C64/30*Feuil3!H64,-1) -> 0 | I64: =ROUND(Feuil2!$C64/30*Feuil3!I64,-1) -> 0 | J64: =ROUND(Feuil2!$C64/30*Feuil3!J64,-1) -> 0 | K64: =ROUND(Feuil2!$C64/30*Feuil3!K64,-1) -> 0 | L64: =ROUND(Feuil2!$C64/30*Feuil3!L64,-1) -> 0 | M64: =ROUND(Feuil2!$C64/30*Feuil3!M64,-1) -> 0 | N64: =ROUND(Feuil2!$C64/30*Feuil3!N64,-1) -> 0 | P64: 0
A65: =Feuil2!A65 -> 0 | B65: =Feuil2!B65 -> 0 | C65: =ROUND(Feuil2!C65/30*Feuil3!C65,-1) -> 0 | D65: =ROUND(Feuil2!C65/30*Feuil3!D65,-1) -> 0 | E65: =ROUND(Feuil2!$C65/30*Feuil3!E65,-1) -> 0 | F65: =ROUND(Feuil2!$C65/30*Feuil3!F65,-1) -> 0 | G65: =ROUND(Feuil2!$C65/30*Feuil3!G65,-1) -> 0 | H65: =ROUND(Feuil2!$C65/30*Feuil3!H65,-1) -> 0 | I65: =ROUND(Feuil2!$C65/30*Feuil3!I65,-1) -> 0 | J65: =ROUND(Feuil2!$C65/30*Feuil3!J65,-1) -> 0 | K65: =ROUND(Feuil2!$C65/30*Feuil3!K65,-1) -> 0 | L65: =ROUND(Feuil2!$C65/30*Feuil3!L65,-1) -> 0 | M65: =ROUND(Feuil2!$C65/30*Feuil3!M65,-1) -> 0 | N65: =ROUND(Feuil2!$C65/30*Feuil3!N65,-1) -> 0 | P65: 0
A66: =Feuil2!A66 -> 0 | B66: =Feuil2!B66 -> 0 | C66: =ROUND(Feuil2!C66/30*Feuil3!C66,-1) -> 0 | D66: =ROUND(Feuil2!C66/30*Feuil3!D66,-1) -> 0 | E66: =ROUND(Feuil2!$C66/30*Feuil3!E66,-1) -> 0 | F66: =ROUND(Feuil2!$C66/30*Feuil3!F66,-1) -> 0 | G66: =ROUND(Feuil2!$C66/30*Feuil3!G66,-1) -> 0 | H66: =ROUND(Feuil2!$C66/30*Feuil3!H66,-1) -> 0 | I66: =ROUND(Feuil2!$C66/30*Feuil3!I66,-1) -> 0 | J66: =ROUND(Feuil2!$C66/30*Feuil3!J66,-1) -> 0 | K66: =ROUND(Feuil2!$C66/30*Feuil3!K66,-1) -> 0 | L66: =ROUND(Feuil2!$C66/30*Feuil3!L66,-1) -> 0 | M66: =ROUND(Feuil2!$C66/30*Feuil3!M66,-1) -> 0 | N66: =ROUND(Feuil2!$C66/30*Feuil3!N66,-1) -> 0 | P66: 0
A67: =Feuil2!A67 -> 0 | B67: =Feuil2!B67 -> 0 | C67: =ROUND(Feuil2!C67/30*Feuil3!C67,-1) -> 0 | D67: =ROUND(Feuil2!C67/30*Feuil3!D67,-1) -> 0 | E67: =ROUND(Feuil2!$C67/30*Feuil3!E67,-1) -> 0 | F67: =ROUND(Feuil2!$C67/30*Feuil3!F67,-1) -> 0 | G67: =ROUND(Feuil2!$C67/30*Feuil3!G67,-1) -> 0 | H67: =ROUND(Feuil2!$C67/30*Feuil3!H67,-1) -> 0 | I67: =ROUND(Feuil2!$C67/30*Feuil3!I67,-1) -> 0 | J67: =ROUND(Feuil2!$C67/30*Feuil3!J67,-1) -> 0 | K67: =ROUND(Feuil2!$C67/30*Feuil3!K67,-1) -> 0 | L67: =ROUND(Feuil2!$C67/30*Feuil3!L67,-1) -> 0 | M67: =ROUND(Feuil2!$C67/30*Feuil3!M67,-1) -> 0 | N67: =ROUND(Feuil2!$C67/30*Feuil3!N67,-1) -> 0 | P67: 0
A68: =Feuil2!A68 -> 0 | B68: =Feuil2!B68 -> 0 | C68: =ROUND(Feuil2!C68/30*Feuil3!C68,-1) -> 0 | D68: =ROUND(Feuil2!C68/30*Feuil3!D68,-1) -> 0 | E68: =ROUND(Feuil2!$C68/30*Feuil3!E68,-1) -> 0 | F68: =ROUND(Feuil2!$C68/30*Feuil3!F68,-1) -> 0 | G68: =ROUND(Feuil2!$C68/30*Feuil3!G68,-1) -> 0 | H68: =ROUND(Feuil2!$C68/30*Feuil3!H68,-1) -> 0 | I68: =ROUND(Feuil2!$C68/30*Feuil3!I68,-1) -> 0 | J68: =ROUND(Feuil2!$C68/30*Feuil3!J68,-1) -> 0 | K68: =ROUND(Feuil2!$C68/30*Feuil3!K68,-1) -> 0 | L68: =ROUND(Feuil2!$C68/30*Feuil3!L68,-1) -> 0 | M68: =ROUND(Feuil2!$C68/30*Feuil3!M68,-1) -> 0 | N68: =ROUND(Feuil2!$C68/30*Feuil3!N68,-1) -> 0 | P68: =SUM(C68:O68) -> 0
A69: =Feuil2!A69 -> 0 | B69: =Feuil2!B69 -> 0 | C69: =ROUND(Feuil2!C69/30*Feuil3!C69,-1) -> 0 | D69: =ROUND(Feuil2!C69/30*Feuil3!D69,-1) -> 0 | E69: =ROUND(Feuil2!$C69/30*Feuil3!E69,-1) -> 0 | F69: =ROUND(Feuil2!$C69/30*Feuil3!F69,-1) -> 0 | G69: =ROUND(Feuil2!$C69/30*Feuil3!G69,-1) -> 0 | H69: =ROUND(Feuil2!$C69/30*Feuil3!H69,-1) -> 0 | I69: =ROUND(Feuil2!$C69/30*Feuil3!I69,-1) -> 0 | J69: =ROUND(Feuil2!$C69/30*Feuil3!J69,-1) -> 0 | K69: =ROUND(Feuil2!$C69/30*Feuil3!K69,-1) -> 0 | L69: =ROUND(Feuil2!$C69/30*Feuil3!L69,-1) -> 0 | M69: =ROUND(Feuil2!$C69/30*Feuil3!M69,-1) -> 0 | N69: =ROUND(Feuil2!$C69/30*Feuil3!N69,-1) -> 0 | P69: 0
A70: =Feuil2!A70 -> 0 | B70: =Feuil2!B70 -> 0 | C70: =ROUND(Feuil2!C70/30*Feuil3!C70,-1) -> 0 | D70: =ROUND(Feuil2!C70/30*Feuil3!D70,-1) -> 0 | E70: =ROUND(Feuil2!$C70/30*Feuil3!E70,-1) -> 0 | F70: =ROUND(Feuil2!$C70/30*Feuil3!F70,-1) -> 0 | G70: =ROUND(Feuil2!$C70/30*Feuil3!G70,-1) -> 0 | H70: =ROUND(Feuil2!$C70/30*Feuil3!H70,-1) -> 0 | I70: =ROUND(Feuil2!$C70/30*Feuil3!I70,-1) -> 0 | J70: =ROUND(Feuil2!$C70/30*Feuil3!J70,-1) -> 0 | K70: =ROUND(Feuil2!$C70/30*Feuil3!K70,-1) -> 0 | L70: =ROUND(Feuil2!$C70/30*Feuil3!L70,-1) -> 0 | M70: =ROUND(Feuil2!$C70/30*Feuil3!M70,-1) -> 0 | N70: =ROUND(Feuil2!$C70/30*Feuil3!N70,-1) -> 0 | P70: 0
A71: =Feuil2!A71 -> 0 | B71: =Feuil2!B71 -> 0 | C71: =ROUND(Feuil2!C71/30*Feuil3!C71,-1) -> 0 | D71: =ROUND(Feuil2!C71/30*Feuil3!D71,-1) -> 0 | E71: =ROUND(Feuil2!$C71/30*Feuil3!E71,-1) -> 0 | F71: =ROUND(Feuil2!$C71/30*Feuil3!F71,-1) -> 0 | G71: =ROUND(Feuil2!$C71/30*Feuil3!G71,-1) -> 0 | H71: =ROUND(Feuil2!$C71/30*Feuil3!H71,-1) -> 0 | I71: =ROUND(Feuil2!$C71/30*Feuil3!I71,-1) -> 0 | J71: =ROUND(Feuil2!$C71/30*Feuil3!J71,-1) -> 0 | K71: =ROUND(Feuil2!$C71/30*Feuil3!K71,-1) -> 0 | L71: =ROUND(Feuil2!$C71/30*Feuil3!L71,-1) -> 0 | M71: =ROUND(Feuil2!$C71/30*Feuil3!M71,-1) -> 0 | N71: =ROUND(Feuil2!$C71/30*Feuil3!N71,-1) -> 0 | P71: 0
A72: =Feuil2!A72 -> 0 | B72: =Feuil2!B72 -> 0 | C72: =ROUND(Feuil2!C72/30*Feuil3!C72,-1) -> 0 | D72: =ROUND(Feuil2!C72/30*Feuil3!D72,-1) -> 0 | E72: =ROUND(Feuil2!$C72/30*Feuil3!E72,-1) -> 0 | F72: =ROUND(Feuil2!$C72/30*Feuil3!F72,-1) -> 0 | G72: =ROUND(Feuil2!$C72/30*Feuil3!G72,-1) -> 0 | H72: =ROUND(Feuil2!$C72/30*Feuil3!H72,-1) -> 0 | I72: =ROUND(Feuil2!$C72/30*Feuil3!I72,-1) -> 0 | J72: =ROUND(Feuil2!$C72/30*Feuil3!J72,-1) -> 0 | K72: =ROUND(Feuil2!$C72/30*Feuil3!K72,-1) -> 0 | L72: =ROUND(Feuil2!$C72/30*Feuil3!L72,-1) -> 0 | M72: =ROUND(Feuil2!$C72/30*Feuil3!M72,-1) -> 0 | N72: =ROUND(Feuil2!$C72/30*Feuil3!N72,-1) -> 0 | P72: 0
A73: =Feuil2!A73 -> 0 | B73: =Feuil2!B73 -> 0 | C73: =ROUND(Feuil2!C73/30*Feuil3!C73,-1) -> 0 | D73: =ROUND(Feuil2!C73/30*Feuil3!D73,-1) -> 0 | E73: =ROUND(Feuil2!$C73/30*Feuil3!E73,-1) -> 0 | F73: =ROUND(Feuil2!$C73/30*Feuil3!F73,-1) -> 0 | G73: =ROUND(Feuil2!$C73/30*Feuil3!G73,-1) -> 0 | H73: =ROUND(Feuil2!$C73/30*Feuil3!H73,-1) -> 0 | I73: =ROUND(Feuil2!$C73/30*Feuil3!I73,-1) -> 0 | J73: =ROUND(Feuil2!$C73/30*Feuil3!J73,-1) -> 0 | K73: =ROUND(Feuil2!$C73/30*Feuil3!K73,-1) -> 0 | L73: =ROUND(Feuil2!$C73/30*Feuil3!L73,-1) -> 0 | M73: =ROUND(Feuil2!$C73/30*Feuil3!M73,-1) -> 0 | N73: =ROUND(Feuil2!$C73/30*Feuil3!N73,-1) -> 0 | P73: 0
A74: =Feuil2!A74 -> 0 | B74: =Feuil2!B74 -> 0 | C74: =ROUND(Feuil2!C74/30*Feuil3!C74,-1) -> 0 | D74: =ROUND(Feuil2!C74/30*Feuil3!D74,-1) -> 0 | E74: =ROUND(Feuil2!$C74/30*Feuil3!E74,-1) -> 0 | F74: =ROUND(Feuil2!$C74/30*Feuil3!F74,-1) -> 0 | G74: =ROUND(Feuil2!$C74/30*Feuil3!G74,-1) -> 0 | H74: =ROUND(Feuil2!$C74/30*Feuil3!H74,-1) -> 0 | I74: =ROUND(Feuil2!$C74/30*Feuil3!I74,-1) -> 0 | J74: =ROUND(Feuil2!$C74/30*Feuil3!J74,-1) -> 0 | K74: =ROUND(Feuil2!$C74/30*Feuil3!K74,-1) -> 0 | L74: =ROUND(Feuil2!$C74/30*Feuil3!L74,-1) -> 0 | M74: =ROUND(Feuil2!$C74/30*Feuil3!M74,-1) -> 0 | N74: =ROUND(Feuil2!$C74/30*Feuil3!N74,-1) -> 0 | P74: 0
A75: =Feuil2!A75 -> 0 | B75: =Feuil2!B75 -> 0 | C75: =ROUND(Feuil2!C75/30*Feuil3!C75,-1) -> 0 | D75: =ROUND(Feuil2!C75/30*Feuil3!D75,-1) -> 0 | E75: =ROUND(Feuil2!$C75/30*Feuil3!E75,-1) -> 0 | F75: =ROUND(Feuil2!$C75/30*Feuil3!F75,-1) -> 0 | G75: =ROUND(Feuil2!$C75/30*Feuil3!G75,-1) -> 0 | H75: =ROUND(Feuil2!$C75/30*Feuil3!H75,-1) -> 0 | I75: =ROUND(Feuil2!$C75/30*Feuil3!I75,-1) -> 0 | J75: =ROUND(Feuil2!$C75/30*Feuil3!J75,-1) -> 0 | K75: =ROUND(Feuil2!$C75/30*Feuil3!K75,-1) -> 0 | L75: =ROUND(Feuil2!$C75/30*Feuil3!L75,-1) -> 0 | M75: =ROUND(Feuil2!$C75/30*Feuil3!M75,-1) -> 0 | N75: =ROUND(Feuil2!$C75/30*Feuil3!N75,-1) -> 0 | P75: 0
A76: =Feuil2!A76 -> 0 | B76: =Feuil2!B76 -> 0 | C76: =ROUND(Feuil2!C76/30*Feuil3!C76,-1) -> 0 | D76: =ROUND(Feuil2!C76/30*Feuil3!D76,-1) -> 0 | E76: =ROUND(Feuil2!$C76/30*Feuil3!E76,-1) -> 0 | F76: =ROUND(Feuil2!$C76/30*Feuil3!F76,-1) -> 0 | G76: =ROUND(Feuil2!$C76/30*Feuil3!G76,-1) -> 0 | H76: =ROUND(Feuil2!$C76/30*Feuil3!H76,-1) -> 0 | I76: =ROUND(Feuil2!$C76/30*Feuil3!I76,-1) -> 0 | J76: =ROUND(Feuil2!$C76/30*Feuil3!J76,-1) -> 0 | K76: =ROUND(Feuil2!$C76/30*Feuil3!K76,-1) -> 0 | L76: =ROUND(Feuil2!$C76/30*Feuil3!L76,-1) -> 0 | M76: =ROUND(Feuil2!$C76/30*Feuil3!M76,-1) -> 0 | N76: =ROUND(Feuil2!$C76/30*Feuil3!N76,-1) -> 0 | P76: 0
A77: =Feuil2!A77 -> 0 | B77: =Feuil2!B77 -> 0 | C77: =ROUND(Feuil2!C77/30*Feuil3!C77,-1) -> 0 | D77: =ROUND(Feuil2!C77/30*Feuil3!D77,-1) -> 0 | E77: =ROUND(Feuil2!$C77/30*Feuil3!E77,-1) -> 0 | F77: =ROUND(Feuil2!$C77/30*Feuil3!F77,-1) -> 0 | G77: =ROUND(Feuil2!$C77/30*Feuil3!G77,-1) -> 0 | H77: =ROUND(Feuil2!$C77/30*Feuil3!H77,-1) -> 0 | I77: =ROUND(Feuil2!$C77/30*Feuil3!I77,-1) -> 0 | J77: =ROUND(Feuil2!$C77/30*Feuil3!J77,-1) -> 0 | K77: =ROUND(Feuil2!$C77/30*Feuil3!K77,-1) -> 0 | L77: =ROUND(Feuil2!$C77/30*Feuil3!L77,-1) -> 0 | M77: =ROUND(Feuil2!$C77/30*Feuil3!M77,-1) -> 0 | N77: =ROUND(Feuil2!$C77/30*Feuil3!N77,-1) -> 0 | P77: 0
A78: =Feuil2!A78 -> 0 | B78: =Feuil2!B78 -> 0 | C78: =ROUND(Feuil2!C78/30*Feuil3!C78,-1) -> 0 | D78: =ROUND(Feuil2!C78/30*Feuil3!D78,-1) -> 0 | E78: =ROUND(Feuil2!$C78/30*Feuil3!E78,-1) -> 0 | F78: =ROUND(Feuil2!$C78/30*Feuil3!F78,-1) -> 0 | G78: =ROUND(Feuil2!$C78/30*Feuil3!G78,-1) -> 0 | H78: =ROUND(Feuil2!$C78/30*Feuil3!H78,-1) -> 0 | I78: =ROUND(Feuil2!$C78/30*Feuil3!I78,-1) -> 0 | J78: =ROUND(Feuil2!$C78/30*Feuil3!J78,-1) -> 0 | K78: =ROUND(Feuil2!$C78/30*Feuil3!K78,-1) -> 0 | L78: =ROUND(Feuil2!$C78/30*Feuil3!L78,-1) -> 0 | M78: =ROUND(Feuil2!$C78/30*Feuil3!M78,-1) -> 0 | N78: =ROUND(Feuil2!$C78/30*Feuil3!N78,-1) -> 0 | P78: 0
A79: =Feuil2!A79 -> 0 | B79: =Feuil2!B79 -> 0 | C79: =ROUND(Feuil2!C79/30*Feuil3!C79,-1) -> 0 | D79: =ROUND(Feuil2!C79/30*Feuil3!D79,-1) -> 0 | E79: =ROUND(Feuil2!$C79/30*Feuil3!E79,-1) -> 0 | F79: =ROUND(Feuil2!$C79/30*Feuil3!F79,-1) -> 0 | G79: =ROUND(Feuil2!$C79/30*Feuil3!G79,-1) -> 0 | H79: =ROUND(Feuil2!$C79/30*Feuil3!H79,-1) -> 0 | I79: =ROUND(Feuil2!$C79/30*Feuil3!I79,-1) -> 0 | J79: =ROUND(Feuil2!$C79/30*Feuil3!J79,-1) -> 0 | K79: =ROUND(Feuil2!$C79/30*Feuil3!K79,-1) -> 0 | L79: =ROUND(Feuil2!$C79/30*Feuil3!L79,-1) -> 0 | M79: =ROUND(Feuil2!$C79/30*Feuil3!M79,-1) -> 0 | N79: =ROUND(Feuil2!$C79/30*Feuil3!N79,-1) -> 0 | P79: 0
A80: =Feuil2!A80 -> 0 | B80: =Feuil2!B80 -> 0 | C80: =ROUND(Feuil2!C80/30*Feuil3!C80,-1) -> 0 | D80: =ROUND(Feuil2!C80/30*Feuil3!D80,-1) -> 0 | E80: =ROUND(Feuil2!$C80/30*Feuil3!E80,-1) -> 0 | F80: =ROUND(Feuil2!$C80/30*Feuil3!F80,-1) -> 0 | G80: =ROUND(Feuil2!$C80/30*Feuil3!G80,-1) -> 0 | H80: =ROUND(Feuil2!$C80/30*Feuil3!H80,-1) -> 0 | I80: =ROUND(Feuil2!$C80/30*Feuil3!I80,-1) -> 0 | J80: =ROUND(Feuil2!$C80/30*Feuil3!J80,-1) -> 0 | K80: =ROUND(Feuil2!$C80/30*Feuil3!K80,-1) -> 0 | L80: =ROUND(Feuil2!$C80/30*Feuil3!L80,-1) -> 0 | M80: =ROUND(Feuil2!$C80/30*Feuil3!M80,-1) -> 0 | N80: =ROUND(Feuil2!$C80/30*Feuil3!N80,-1) -> 0 | P80: 0
A81: =Feuil2!A81 -> 0 | B81: =Feuil2!B81 -> 0 | C81: =ROUND(Feuil2!C81/30*Feuil3!C81,-1) -> 0 | D81: =ROUND(Feuil2!C81/30*Feuil3!D81,-1) -> 0 | E81: =ROUND(Feuil2!$C81/30*Feuil3!E81,-1) -> 0 | F81: =ROUND(Feuil2!$C81/30*Feuil3!F81,-1) -> 0 | G81: =ROUND(Feuil2!$C81/30*Feuil3!G81,-1) -> 0 | H81: =ROUND(Feuil2!$C81/30*Feuil3!H81,-1) -> 0 | I81: =ROUND(Feuil2!$C81/30*Feuil3!I81,-1) -> 0 | J81: =ROUND(Feuil2!$C81/30*Feuil3!J81,-1) -> 0 | K81: =ROUND(Feuil2!$C81/30*Feuil3!K81,-1) -> 0 | L81: =ROUND(Feuil2!$C81/30*Feuil3!L81,-1) -> 0 | M81: =ROUND(Feuil2!$C81/30*Feuil3!M81,-1) -> 0 | N81: =ROUND(Feuil2!$C81/30*Feuil3!N81,-1) -> 0 | P81: 0
A82: =Feuil2!A82 -> 0 | B82: =Feuil2!B82 -> 0 | C82: =ROUND(Feuil2!C82/30*Feuil3!C82,-1) -> 0 | D82: =ROUND(Feuil2!C82/30*Feuil3!D82,-1) -> 0 | E82: =ROUND(Feuil2!$C82/30*Feuil3!E82,-1) -> 0 | F82: =ROUND(Feuil2!$C82/30*Feuil3!F82,-1) -> 0 | G82: =ROUND(Feuil2!$C82/30*Feuil3!G82,-1) -> 0 | H82: =ROUND(Feuil2!$C82/30*Feuil3!H82,-1) -> 0 | I82: =ROUND(Feuil2!$C82/30*Feuil3!I82,-1) -> 0 | J82: =ROUND(Feuil2!$C82/30*Feuil3!J82,-1) -> 0 | K82: =ROUND(Feuil2!$C82/30*Feuil3!K82,-1) -> 0 | L82: =ROUND(Feuil2!$C82/30*Feuil3!L82,-1) -> 0 | M82: =ROUND(Feuil2!$C82/30*Feuil3!M82,-1) -> 0 | N82: =ROUND(Feuil2!$C82/30*Feuil3!N82,-1) -> 0 | P82: 0
A83: =Feuil2!A83 -> 0 | B83: =Feuil2!B83 -> 0 | C83: =ROUND(Feuil2!C83/30*Feuil3!C83,-1) -> 0 | D83: =ROUND(Feuil2!C83/30*Feuil3!D83,-1) -> 0 | E83: =ROUND(Feuil2!$C83/30*Feuil3!E83,-1) -> 0 | F83: =ROUND(Feuil2!$C83/30*Feuil3!F83,-1) -> 0 | G83: =ROUND(Feuil2!$C83/30*Feuil3!G83,-1) -> 0 | H83: =ROUND(Feuil2!$C83/30*Feuil3!H83,-1) -> 0 | I83: =ROUND(Feuil2!$C83/30*Feuil3!I83,-1) -> 0 | J83: =ROUND(Feuil2!$C83/30*Feuil3!J83,-1) -> 0 | K83: =ROUND(Feuil2!$C83/30*Feuil3!K83,-1) -> 0 | L83: =ROUND(Feuil2!$C83/30*Feuil3!L83,-1) -> 0 | M83: =ROUND(Feuil2!$C83/30*Feuil3!M83,-1) -> 0 | N83: =ROUND(Feuil2!$C83/30*Feuil3!N83,-1) -> 0 | P83: 0
A84: =Feuil2!A84 -> 0 | B84: =Feuil2!B84 -> 0 | C84: =ROUND(Feuil2!C84/30*Feuil3!C84,-1) -> 0 | D84: =ROUND(Feuil2!C84/30*Feuil3!D84,-1) -> 0 | E84: =ROUND(Feuil2!$C84/30*Feuil3!E84,-1) -> 0 | F84: =ROUND(Feuil2!$C84/30*Feuil3!F84,-1) -> 0 | G84: =ROUND(Feuil2!$C84/30*Feuil3!G84,-1) -> 0 | H84: =ROUND(Feuil2!$C84/30*Feuil3!H84,-1) -> 0 | I84: =ROUND(Feuil2!$C84/30*Feuil3!I84,-1) -> 0 | J84: =ROUND(Feuil2!$C84/30*Feuil3!J84,-1) -> 0 | K84: =ROUND(Feuil2!$C84/30*Feuil3!K84,-1) -> 0 | L84: =ROUND(Feuil2!$C84/30*Feuil3!L84,-1) -> 0 | M84: =ROUND(Feuil2!$C84/30*Feuil3!M84,-1) -> 0 | N84: =ROUND(Feuil2!$C84/30*Feuil3!N84,-1) -> 0 | P84: 0
A85: =Feuil2!A85 -> 0 | B85: =Feuil2!B85 -> 0 | C85: =ROUND(Feuil2!C85/30*Feuil3!C85,-1) -> 0 | D85: =ROUND(Feuil2!C85/30*Feuil3!D85,-1) -> 0 | E85: =ROUND(Feuil2!$C85/30*Feuil3!E85,-1) -> 0 | F85: =ROUND(Feuil2!$C85/30*Feuil3!F85,-1) -> 0 | G85: =ROUND(Feuil2!$C85/30*Feuil3!G85,-1) -> 0 | H85: =ROUND(Feuil2!$C85/30*Feuil3!H85,-1) -> 0 | I85: =ROUND(Feuil2!$C85/30*Feuil3!I85,-1) -> 0 | J85: =ROUND(Feuil2!$C85/30*Feuil3!J85,-1) -> 0 | K85: =ROUND(Feuil2!$C85/30*Feuil3!K85,-1) -> 0 | L85: =ROUND(Feuil2!$C85/30*Feuil3!L85,-1) -> 0 | M85: =ROUND(Feuil2!$C85/30*Feuil3!M85,-1) -> 0 | N85: =ROUND(Feuil2!$C85/30*Feuil3!N85,-1) -> 0 | P85: 0
A86: =Feuil2!A86 -> 0 | B86: =Feuil2!B86 -> 0 | C86: =ROUND(Feuil2!C86/30*Feuil3!C86,-1) -> 0 | D86: =ROUND(Feuil2!C86/30*Feuil3!D86,-1) -> 0 | E86: =ROUND(Feuil2!$C86/30*Feuil3!E86,-1) -> 0 | F86: =ROUND(Feuil2!$C86/30*Feuil3!F86,-1) -> 0 | G86: =ROUND(Feuil2!$C86/30*Feuil3!G86,-1) -> 0 | H86: =ROUND(Feuil2!$C86/30*Feuil3!H86,-1) -> 0 | I86: =ROUND(Feuil2!$C86/30*Feuil3!I86,-1) -> 0 | J86: =ROUND(Feuil2!$C86/30*Feuil3!J86,-1) -> 0 | K86: =ROUND(Feuil2!$C86/30*Feuil3!K86,-1) -> 0 | L86: =ROUND(Feuil2!$C86/30*Feuil3!L86,-1) -> 0 | M86: =ROUND(Feuil2!$C86/30*Feuil3!M86,-1) -> 0 | N86: =ROUND(Feuil2!$C86/30*Feuil3!N86,-1) -> 0 | P86: 0
A87: =Feuil2!A87 -> 0 | B87: =Feuil2!B87 -> 0 | C87: =ROUND(Feuil2!C87/30*Feuil3!C87,-1) -> 0 | D87: =ROUND(Feuil2!C87/30*Feuil3!D87,-1) -> 0 | E87: =ROUND(Feuil2!$C87/30*Feuil3!E87,-1) -> 0 | F87: =ROUND(Feuil2!$C87/30*Feuil3!F87,-1) -> 0 | G87: =ROUND(Feuil2!$C87/30*Feuil3!G87,-1) -> 0 | H87: =ROUND(Feuil2!$C87/30*Feuil3!H87,-1) -> 0 | I87: =ROUND(Feuil2!$C87/30*Feuil3!I87,-1) -> 0 | J87: =ROUND(Feuil2!$C87/30*Feuil3!J87,-1) -> 0 | K87: =ROUND(Feuil2!$C87/30*Feuil3!K87,-1) -> 0 | L87: =ROUND(Feuil2!$C87/30*Feuil3!L87,-1) -> 0 | M87: =ROUND(Feuil2!$C87/30*Feuil3!M87,-1) -> 0 | N87: =ROUND(Feuil2!$C87/30*Feuil3!N87,-1) -> 0 | P87: 0
A88: =Feuil2!A88 -> 0 | B88: =Feuil2!B88 -> 0 | C88: =ROUND(Feuil2!C88/30*Feuil3!C88,-1) -> 0 | D88: =ROUND(Feuil2!C88/30*Feuil3!D88,-1) -> 0 | E88: =ROUND(Feuil2!$C88/30*Feuil3!E88,-1) -> 0 | F88: =ROUND(Feuil2!$C88/30*Feuil3!F88,-1) -> 0 | G88: =ROUND(Feuil2!$C88/30*Feuil3!G88,-1) -> 0 | H88: =ROUND(Feuil2!$C88/30*Feuil3!H88,-1) -> 0 | I88: =ROUND(Feuil2!$C88/30*Feuil3!I88,-1) -> 0 | J88: =ROUND(Feuil2!$C88/30*Feuil3!J88,-1) -> 0 | K88: =ROUND(Feuil2!$C88/30*Feuil3!K88,-1) -> 0 | L88: =ROUND(Feuil2!$C88/30*Feuil3!L88,-1) -> 0 | M88: =ROUND(Feuil2!$C88/30*Feuil3!M88,-1) -> 0 | N88: =ROUND(Feuil2!$C88/30*Feuil3!N88,-1) -> 0 | P88: 0
A89: =Feuil2!A89 -> 0 | B89: =Feuil2!B89 -> 0 | C89: =ROUND(Feuil2!C89/30*Feuil3!C89,-1) -> 0 | D89: =ROUND(Feuil2!C89/30*Feuil3!D89,-1) -> 0 | E89: =ROUND(Feuil2!$C89/30*Feuil3!E89,-1) -> 0 | F89: =ROUND(Feuil2!$C89/30*Feuil3!F89,-1) -> 0 | G89: =ROUND(Feuil2!$C89/30*Feuil3!G89,-1) -> 0 | H89: =ROUND(Feuil2!$C89/30*Feuil3!H89,-1) -> 0 | I89: =ROUND(Feuil2!$C89/30*Feuil3!I89,-1) -> 0 | J89: =ROUND(Feuil2!$C89/30*Feuil3!J89,-1) -> 0 | K89: =ROUND(Feuil2!$C89/30*Feuil3!K89,-1) -> 0 | L89: =ROUND(Feuil2!$C89/30*Feuil3!L89,-1) -> 0 | M89: =ROUND(Feuil2!$C89/30*Feuil3!M89,-1) -> 0 | N89: =ROUND(Feuil2!$C89/30*Feuil3!N89,-1) -> 0 | P89: 0
A90: =Feuil2!A90 -> 0 | B90: =Feuil2!B90 -> 0 | C90: =ROUND(Feuil2!C90/30*Feuil3!C90,-1) -> 0 | D90: =ROUND(Feuil2!C90/30*Feuil3!D90,-1) -> 0 | E90: =ROUND(Feuil2!$C90/30*Feuil3!E90,-1) -> 0 | F90: =ROUND(Feuil2!$C90/30*Feuil3!F90,-1) -> 0 | G90: =ROUND(Feuil2!$C90/30*Feuil3!G90,-1) -> 0 | H90: =ROUND(Feuil2!$C90/30*Feuil3!H90,-1) -> 0 | I90: =ROUND(Feuil2!$C90/30*Feuil3!I90,-1) -> 0 | J90: =ROUND(Feuil2!$C90/30*Feuil3!J90,-1) -> 0 | K90: =ROUND(Feuil2!$C90/30*Feuil3!K90,-1) -> 0 | L90: =ROUND(Feuil2!$C90/30*Feuil3!L90,-1) -> 0 | M90: =ROUND(Feuil2!$C90/30*Feuil3!M90,-1) -> 0 | N90: =ROUND(Feuil2!$C90/30*Feuil3!N90,-1) -> 0 | P90: 0
A91: =Feuil2!A91 -> 0 | B91: =Feuil2!B91 -> 0 | C91: =ROUND(Feuil2!C91/30*Feuil3!C91,-1) -> 0 | D91: =ROUND(Feuil2!C91/30*Feuil3!D91,-1) -> 0 | E91: =ROUND(Feuil2!$C91/30*Feuil3!E91,-1) -> 0 | F91: =ROUND(Feuil2!$C91/30*Feuil3!F91,-1) -> 0 | G91: =ROUND(Feuil2!$C91/30*Feuil3!G91,-1) -> 0 | H91: =ROUND(Feuil2!$C91/30*Feuil3!H91,-1) -> 0 | I91: =ROUND(Feuil2!$C91/30*Feuil3!I91,-1) -> 0 | J91: =ROUND(Feuil2!$C91/30*Feuil3!J91,-1) -> 0 | K91: =ROUND(Feuil2!$C91/30*Feuil3!K91,-1) -> 0 | L91: =ROUND(Feuil2!$C91/30*Feuil3!L91,-1) -> 0 | M91: =ROUND(Feuil2!$C91/30*Feuil3!M91,-1) -> 0 | N91: =ROUND(Feuil2!$C91/30*Feuil3!N91,-1) -> 0 | P91: 0
A92: =Feuil2!A92 -> 0 | B92: =Feuil2!B92 -> 0 | C92: =ROUND(Feuil2!C92/30*Feuil3!C92,-1) -> 0 | D92: =ROUND(Feuil2!C92/30*Feuil3!D92,-1) -> 0 | E92: =ROUND(Feuil2!$C92/30*Feuil3!E92,-1) -> 0 | F92: =ROUND(Feuil2!$C92/30*Feuil3!F92,-1) -> 0 | G92: =ROUND(Feuil2!$C92/30*Feuil3!G92,-1) -> 0 | H92: =ROUND(Feuil2!$C92/30*Feuil3!H92,-1) -> 0 | I92: =ROUND(Feuil2!$C92/30*Feuil3!I92,-1) -> 0 | J92: =ROUND(Feuil2!$C92/30*Feuil3!J92,-1) -> 0 | K92: =ROUND(Feuil2!$C92/30*Feuil3!K92,-1) -> 0 | L92: =ROUND(Feuil2!$C92/30*Feuil3!L92,-1) -> 0 | M92: =ROUND(Feuil2!$C92/30*Feuil3!M92,-1) -> 0 | N92: =ROUND(Feuil2!$C92/30*Feuil3!N92,-1) -> 0 | P92: 0
A93: =Feuil2!A93 -> 0 | B93: =Feuil2!B93 -> 0 | C93: =ROUND(Feuil2!C93/30*Feuil3!C93,-1) -> 0 | D93: =ROUND(Feuil2!C93/30*Feuil3!D93,-1) -> 0 | E93: =ROUND(Feuil2!$C93/30*Feuil3!E93,-1) -> 0 | F93: =ROUND(Feuil2!$C93/30*Feuil3!F93,-1) -> 0 | G93: =ROUND(Feuil2!$C93/30*Feuil3!G93,-1) -> 0 | H93: =ROUND(Feuil2!$C93/30*Feuil3!H93,-1) -> 0 | I93: =ROUND(Feuil2!$C93/30*Feuil3!I93,-1) -> 0 | J93: =ROUND(Feuil2!$C93/30*Feuil3!J93,-1) -> 0 | K93: =ROUND(Feuil2!$C93/30*Feuil3!K93,-1) -> 0 | L93: =ROUND(Feuil2!$C93/30*Feuil3!L93,-1) -> 0 | M93: =ROUND(Feuil2!$C93/30*Feuil3!M93,-1) -> 0 | N93: =ROUND(Feuil2!$C93/30*Feuil3!N93,-1) -> 0 | P93: 0
A94: =Feuil2!A94 -> 0 | B94: =Feuil2!B94 -> 0 | C94: =ROUND(Feuil2!C94/30*Feuil3!C94,-1) -> 0 | D94: =ROUND(Feuil2!C94/30*Feuil3!D94,-1) -> 0 | E94: =ROUND(Feuil2!$C94/30*Feuil3!E94,-1) -> 0 | F94: =ROUND(Feuil2!$C94/30*Feuil3!F94,-1) -> 0 | G94: =ROUND(Feuil2!$C94/30*Feuil3!G94,-1) -> 0 | H94: =ROUND(Feuil2!$C94/30*Feuil3!H94,-1) -> 0 | I94: =ROUND(Feuil2!$C94/30*Feuil3!I94,-1) -> 0 | J94: =ROUND(Feuil2!$C94/30*Feuil3!J94,-1) -> 0 | K94: =ROUND(Feuil2!$C94/30*Feuil3!K94,-1) -> 0 | L94: =ROUND(Feuil2!$C94/30*Feuil3!L94,-1) -> 0 | M94: =ROUND(Feuil2!$C94/30*Feuil3!M94,-1) -> 0 | N94: =ROUND(Feuil2!$C94/30*Feuil3!N94,-1) -> 0 | P94: 0
A95: =Feuil2!A95 -> 0 | B95: =Feuil2!B95 -> 0 | C95: =ROUND(Feuil2!C95/30*Feuil3!C95,-1) -> 0 | D95: =ROUND(Feuil2!C95/30*Feuil3!D95,-1) -> 0 | E95: =ROUND(Feuil2!$C95/30*Feuil3!E95,-1) -> 0 | F95: =ROUND(Feuil2!$C95/30*Feuil3!F95,-1) -> 0 | G95: =ROUND(Feuil2!$C95/30*Feuil3!G95,-1) -> 0 | H95: =ROUND(Feuil2!$C95/30*Feuil3!H95,-1) -> 0 | I95: =ROUND(Feuil2!$C95/30*Feuil3!I95,-1) -> 0 | J95: =ROUND(Feuil2!$C95/30*Feuil3!J95,-1) -> 0 | K95: =ROUND(Feuil2!$C95/30*Feuil3!K95,-1) -> 0 | L95: =ROUND(Feuil2!$C95/30*Feuil3!L95,-1) -> 0 | M95: =ROUND(Feuil2!$C95/30*Feuil3!M95,-1) -> 0 | N95: =ROUND(Feuil2!$C95/30*Feuil3!N95,-1) -> 0 | P95: 0
A96: =Feuil2!A96 -> 0 | B96: =Feuil2!B96 -> 0 | C96: =ROUND(Feuil2!C96/30*Feuil3!C96,-1) -> 0 | D96: =ROUND(Feuil2!C96/30*Feuil3!D96,-1) -> 0 | E96: =ROUND(Feuil2!$C96/30*Feuil3!E96,-1) -> 0 | F96: =ROUND(Feuil2!$C96/30*Feuil3!F96,-1) -> 0 | G96: =ROUND(Feuil2!$C96/30*Feuil3!G96,-1) -> 0 | H96: =ROUND(Feuil2!$C96/30*Feuil3!H96,-1) -> 0 | I96: =ROUND(Feuil2!$C96/30*Feuil3!I96,-1) -> 0 | J96: =ROUND(Feuil2!$C96/30*Feuil3!J96,-1) -> 0 | K96: =ROUND(Feuil2!$C96/30*Feuil3!K96,-1) -> 0 | L96: =ROUND(Feuil2!$C96/30*Feuil3!L96,-1) -> 0 | M96: =ROUND(Feuil2!$C96/30*Feuil3!M96,-1) -> 0 | N96: =ROUND(Feuil2!$C96/30*Feuil3!N96,-1) -> 0 | P96: 0
A97: =Feuil2!A97 -> 0 | B97: =Feuil2!B97 -> 0 | C97: =ROUND(Feuil2!C97/30*Feuil3!C97,-1) -> 0 | D97: =ROUND(Feuil2!C97/30*Feuil3!D97,-1) -> 0 | E97: =ROUND(Feuil2!$C97/30*Feuil3!E97,-1) -> 0 | F97: =ROUND(Feuil2!$C97/30*Feuil3!F97,-1) -> 0 | G97: =ROUND(Feuil2!$C97/30*Feuil3!G97,-1) -> 0 | H97: =ROUND(Feuil2!$C97/30*Feuil3!H97,-1) -> 0 | I97: =ROUND(Feuil2!$C97/30*Feuil3!I97,-1) -> 0 | J97: =ROUND(Feuil2!$C97/30*Feuil3!J97,-1) -> 0 | K97: =ROUND(Feuil2!$C97/30*Feuil3!K97,-1) -> 0 | L97: =ROUND(Feuil2!$C97/30*Feuil3!L97,-1) -> 0 | M97: =ROUND(Feuil2!$C97/30*Feuil3!M97,-1) -> 0 | N97: =ROUND(Feuil2!$C97/30*Feuil3!N97,-1) -> 0 | P97: 0
A98: =Feuil2!A98 -> 0 | B98: =Feuil2!B98 -> 0 | C98: =ROUND(Feuil2!C98/30*Feuil3!C98,-1) -> 0 | D98: =ROUND(Feuil2!C98/30*Feuil3!D98,-1) -> 0 | E98: =ROUND(Feuil2!$C98/30*Feuil3!E98,-1) -> 0 | F98: =ROUND(Feuil2!$C98/30*Feuil3!F98,-1) -> 0 | G98: =ROUND(Feuil2!$C98/30*Feuil3!G98,-1) -> 0 | H98: =ROUND(Feuil2!$C98/30*Feuil3!H98,-1) -> 0 | I98: =ROUND(Feuil2!$C98/30*Feuil3!I98,-1) -> 0 | J98: =ROUND(Feuil2!$C98/30*Feuil3!J98,-1) -> 0 | K98: =ROUND(Feuil2!$C98/30*Feuil3!K98,-1) -> 0 | L98: =ROUND(Feuil2!$C98/30*Feuil3!L98,-1) -> 0 | M98: =ROUND(Feuil2!$C98/30*Feuil3!M98,-1) -> 0 | N98: =ROUND(Feuil2!$C98/30*Feuil3!N98,-1) -> 0 | P98: 0
A99: =Feuil2!A99 -> 0 | B99: =Feuil2!B99 -> 0 | C99: =ROUND(Feuil2!C99/30*Feuil3!C99,-1) -> 0 | D99: =ROUND(Feuil2!C99/30*Feuil3!D99,-1) -> 0 | E99: =ROUND(Feuil2!$C99/30*Feuil3!E99,-1) -> 0 | F99: =ROUND(Feuil2!$C99/30*Feuil3!F99,-1) -> 0 | G99: =ROUND(Feuil2!$C99/30*Feuil3!G99,-1) -> 0 | H99: =ROUND(Feuil2!$C99/30*Feuil3!H99,-1) -> 0 | I99: =ROUND(Feuil2!$C99/30*Feuil3!I99,-1) -> 0 | J99: =ROUND(Feuil2!$C99/30*Feuil3!J99,-1) -> 0 | K99: =ROUND(Feuil2!$C99/30*Feuil3!K99,-1) -> 0 | L99: =ROUND(Feuil2!$C99/30*Feuil3!L99,-1) -> 0 | M99: =ROUND(Feuil2!$C99/30*Feuil3!M99,-1) -> 0 | N99: =ROUND(Feuil2!$C99/30*Feuil3!N99,-1) -> 0 | P99: 0
A100: =Feuil2!A100 -> 0 | B100: =Feuil2!B100 -> 0 | C100: =ROUND(Feuil2!C100/30*Feuil3!C100,-1) -> 0 | D100: =ROUND(Feuil2!C100/30*Feuil3!D100,-1) -> 0 | E100: =ROUND(Feuil2!$C100/30*Feuil3!E100,-1) -> 0 | F100: =ROUND(Feuil2!$C100/30*Feuil3!F100,-1) -> 0 | G100: =ROUND(Feuil2!$C100/30*Feuil3!G100,-1) -> 0 | H100: =ROUND(Feuil2!$C100/30*Feuil3!H100,-1) -> 0 | I100: =ROUND(Feuil2!$C100/30*Feuil3!I100,-1) -> 0 | J100: =ROUND(Feuil2!$C100/30*Feuil3!J100,-1) -> 0 | K100: =ROUND(Feuil2!$C100/30*Feuil3!K100,-1) -> 0 | L100: =ROUND(Feuil2!$C100/30*Feuil3!L100,-1) -> 0 | M100: =ROUND(Feuil2!$C100/30*Feuil3!M100,-1) -> 0 | N100: =ROUND(Feuil2!$C100/30*Feuil3!N100,-1) -> 0 | P100: 0
P101: =SUM(P3:P100) -> 2111670

Sheet Feuil5
A1: احمد | C1: 1 | D1: 2 | E1: 3 | F1: 4 | G1: 5 | H1: 6 | I1: 7 | J1: 8 | K1: 9 | L1: 10 | M1: 11 | N1: 12 | O1: 13 | P1: 14 | Q1: 15 | R1: 16 | S1: 17 | T1: 18 | U1: 19 | V1: 20 | W1: 21 | X1: 22 | Y1: 23 | Z1: 24
A2: NOM & PRENOM | B2: FONCTION | C2: avnce | D2: date | E2: avnce3 | F2: date4 | G2: avnce5 | H2: date6 | I2: avnce7 | J2: date8 | K2: avnce9 | L2: date10 | M2: avnce11 | N2: date12 | O2: avnce13 | P2: date14 | Q2: avnce15 | R2: date16 | S2: avnce17 | T2: date18 | U2: avnce19 | V2: date20 | W2: avnce21 | X2: date22 | Y2: date23 | Z2: date24
A3: =Feuil2!A3 -> محمد | B3: =Feuil2!B3 -> مدير | C3: 50000 | D3: 2013-03-28
A4: =Feuil2!A4 -> علي | B4: =Feuil2!B4 -> رئيس قسم | C4: 5000 | D4: 2013-03-28
A5: =Feuil2!A5 -> احمد | B5: =Feuil2!B5 -> محاسب | C5: 20000 | D5: 2013-03-28
A6: =Feuil2!A6 -> عبد الله | B6: =Feuil2!B6 -> عامل
A7: =Feuil2!A7 -> 0 | B7: =Feuil2!B7 -> 0
A8: =Feuil2!A8 -> 0 | B8: =Feuil2!B8 -> 0
A9: =Feuil2!A9 -> 0 | B9: =Feuil2!B9 -> 0
A10: =Feuil2!A10 -> 0 | B10: =Feuil2!B10 -> 0
A11: =Feuil2!A11 -> 0 | B11: =Feuil2!B11 -> 0 | C11: 5000 | D11: 2013-02-20
A12: =Feuil2!A12 -> 0 | B12: =Feuil2!B12 -> 0 | C12: 4000 | D12: 2013-02-06
A13: =Feuil2!A13 -> 0 | B13: =Feuil2!B13 -> 0 | C13: 500 | D13: 2013-02-07 | E13: 10000 | F13: 2013-02-21
A14: =Feuil2!A14 -> 0 | B14: =Feuil2!B14 -> 0
A15: =Feuil2!A15 -> 0 | B15: =Feuil2!B15 -> 0 | C15: 50000 | D15: 2013-01-30
A16: =Feuil2!A16 -> 0 | B16: =Feuil2!B16 -> 0 | C16: 20000 | D16: 2013-04-02 | E16: 2000 | F16: 15/01/2013
A17: =Feuil2!A17 -> 0 | B17: =Feuil2!B17 -> 0 | C17: 10000 | D17: 2013-02-21
A18: =Feuil2!A18 -> 0 | B18: =Feuil2!B18 -> 0 | C18: 500 | D18: 2013-07-02 | E18: 5000 | F18: 13/02/2013
A19: =Feuil2!A19 -> 0 | B19: =Feuil2!B19 -> 0
A20: =Feuil2!A20 -> 0 | B20: =Feuil2!B20 -> 0
A21: =Feuil2!A21 -> 0 | B21: =Feuil2!B21 -> 0
A22: =Feuil2!A22 -> 0 | B22: =Feuil2!B22 -> 0
A23: =Feuil2!A23 -> 0 | B23: =Feuil2!B23 -> 0 | C23: 500 | D23: 2013-02-07
A24: =Feuil2!A24 -> 0 | B24: =Feuil2!B24 -> 0
A25: =Feuil2!A25 -> 0 | B25: =Feuil2!B25 -> 0
A26: =Feuil2!A26 -> 0 | B26: =Feuil2!B26 -> 0
A27: =Feuil2!A27 -> 0 | B27: =Feuil2!B27 -> 0 | C27: 10000 | D27: 2013-01-27
A28: =Feuil2!A28 -> 0 | B28: =Feuil2!B28 -> 0 | C28: 4000 | D28: 15/01/2013 | E28: 6000 | F28: 2013-02-04
A29: =Feuil2!A29 -> 0 | B29: =Feuil2!B29 -> 0
A30: =Feuil2!A30 -> 0 | B30: =Feuil2!B30 -> 0
A31: =Feuil2!A31 -> 0 | B31: =Feuil2!B31 -> 0
A32: =Feuil2!A32 -> 0 | B32: =Feuil2!B32 -> 0 | C32: 5000 | D32: 2013-01-22
A33: =Feuil2!A33 -> 0 | B33: =Feuil2!B33 -> 0
A34: =Feuil2!A34 -> 0 | B34: =Feuil2!B34 -> 0
A35: =Feuil2!A35 -> 0 | B35: =Feuil2!B35 -> 0
A36: =Feuil2!A36 -> 0 | B36: =Feuil2!B36 -> 0
A37: =Feuil2!A37 -> 0 | B37: =Feuil2!B37 -> 0
A38: =Feuil2!A38 -> 0 | B38: =Feuil2!B38 -> 0 | C38: 5500 | D38: 21/01/2013
A39: =Feuil2!A39 -> 0 | B39: =Feuil2!B39 -> 0 | C39: 1000 | D39: 2013-02-05 | E39: 4000 | F39: 2013-02-05
A40: =Feuil2!A40 -> 0 | B40: =Feuil2!B40 -> 0
A41: =Feuil2!A41 -> 0 | B41: =Feuil2!B41 -> 0
A42: =Feuil2!A42 -> 0 | B42: =Feuil2!B42 -> 0
A43: =Feuil2!A43 -> 0 | B43: =Feuil2!B43 -> 0
A44: =Feuil2!A44 -> 0 | B44: =Feuil2!B44 -> 0 | C44: 10000 | D44: 2013-02-12
A45: =Feuil2!A45 -> 0 | B45: =Feuil2!B45 -> 0
A46: =Feuil2!A46 -> 0 | B46: =Feuil2!B46 -> 0
A47: =Feuil2!A47 -> 0 | B47: =Feuil2!B47 -> 0
A48: =Feuil2!A48 -> 0 | B48: =Feuil2!B48 -> 0
A49: =Feuil2!A49 -> 0 | B49: =Feuil2!B49 -> 0
A50: =Feuil2!A50 -> 0 | B50: =Feuil2!B50 -> 0
A51: =Feuil2!A51 -> 0 | B51: =Feuil2!B51 -> 0
A52: =Feuil2!A52 -> 0 | B52: =Feuil2!B52 -> 0 | C52: 1000 | D52: 15/01/2013
A53: =Feuil2!A53 -> 0 | B53: =Feuil2!B53 -> 0
A54: =Feuil2!A54 -> 0 | B54: =Feuil2!B54 -> 0 | C54: 21000 | D54: 2013-04-02
A55: =Feuil2!A55 -> 0 | B55: =Feuil2!B55 -> 0
A56: =Feuil2!A56 -> 0 | B56: =Feuil2!B56 -> 0
A57: =Feuil2!A57 -> 0 | B57: =Feuil2!B57 -> 0
A58: =Feuil2!A58 -> 0 | B58: =Feuil2!B58 -> 0
A59: =Feuil2!A59 -> 0 | B59: =Feuil2!B59 -> 0 | C59: 20500 | D59: 2013-01-30 | E59: 500 | F59: 2013-02-07
A60: =Feuil2!A60 -> 0 | B60: =Feuil2!B60 -> 0
A61: =Feuil2!A61 -> 0 | B61: =Feuil2!B61 -> 0
A62: =Feuil2!A62 -> 0 | B62: =Feuil2!B62 -> 0
A63: =Feuil2!A63 -> 0 | B63: =Feuil2!B63 -> 0
A64: =Feuil2!A64 -> 0 | B64: =Feuil2!B64 -> 0 | C64: 500 | D64: 15/01/2013
A65: =Feuil2!A65 -> 0 | B65: =Feuil2!B65 -> 0
A66: =Feuil2!A66 -> 0 | B66: =Feuil2!B66 -> 0
A67: =Feuil2!A67 -> 0 | B67: =Feuil2!B67 -> 0
A68: =Feuil2!A68 -> 0 | B68: =Feuil2!B68 -> 0
A69: =Feuil2!A69 -> 0 | B69: =Feuil2!B69 -> 0
A70: =Feuil2!A70 -> 0 | B70: =Feuil2!B70 -> 0
A71: =Feuil2!A71 -> 0 | B71: =Feuil2!B71 -> 0
A72: =Feuil2!A72 -> 0 | B72: =Feuil2!B72 -> 0
A73: =Feuil2!A73 -> 0 | B73: =Feuil2!B73 -> 0
A74: =Feuil2!A74 -> 0 | B74: =Feuil2!B74 -> 0
A75: =Feuil2!A75 -> 0 | B75: =Feuil2!B75 -> 0
A76: =Feuil2!A76 -> 0 | B76: =Feuil2!B76 -> 0
A77: =Feuil2!A77 -> 0 | B77: =Feuil2!B77 -> 0
A78: =Feuil2!A78 -> 0 | B78: =Feuil2!B78 -> 0
A79: =Feuil2!A79 -> 0 | B79: =Feuil2!B79 -> 0
A80: =Feuil2!A80 -> 0 | B80: =Feuil2!B80 -> 0
A81: =Feuil2!A81 -> 0 | B81: =Feuil2!B81 -> 0
A82: =Feuil2!A82 -> 0 | B82: =Feuil2!B82 -> 0
A83: =Feuil2!A83 -> 0 | B83: =Feuil2!B83 -> 0
A84: =Feuil2!A84 -> 0 | B84: =Feuil2!B84 -> 0
A85: =Feuil2!A85 -> 0 | B85: =Feuil2!B85 -> 0
A86: =Feuil2!A86 -> 0 | B86: =Feuil2!B86 -> 0
A87: =Feuil2!A87 -> 0 | B87: =Feuil2!B87 -> 0
A88: =Feuil2!A88 -> 0 | B88: =Feuil2!B88 -> 0
A89: =Feuil2!A89 -> 0 | B89: =Feuil2!B89 -> 0
A90: =Feuil2!A90 -> 0 | B90: =Feuil2!B90 -> 0
A91: =Feuil2!A91 -> 0 | B91: =Feuil2!B91 -> 0
A92: =Feuil2!A92 -> 0 | B92: =Feuil2!B92 -> 0
A93: =Feuil2!A93 -> 0 | B93: =Feuil2!B93 -> 0
A94: =Feuil2!A94 -> 0 | B94: =Feuil2!B94 -> 0
A95: =Feuil2!A95 -> 0 | B95: =Feuil2!B95 -> 0
A96: =Feuil2!A96 -> 0 | B96: =Feuil2!B96 -> 0
A97: =Feuil2!A97 -> 0 | B97: =Feuil2!B97 -> 0
A98: =Feuil2!A98 -> 0 | B98: =Feuil2!B98 -> 0
A99: =Feuil2!A99 -> 0 | B99: =Feuil2!B99 -> 0
A100: =Feuil2!A100 -> 0 | B100: =Feuil2!B100 -> 0
C101: =SUM(C3:C100) -> 244000 | E101: =SUM(E3:E100) -> 27500 | G101: =SUM(G3:G100) -> 0 | I101: =SUM(I3:I100) -> 0 | K101: =SUM(K3:K100) -> 0 | M101: =SUM(M3:M100) -> 0 | O101: =SUM(O3:O100) -> 0 | Q101: =SUM(Q3:Q100) -> 0 | S101: =SUM(S3:S100) -> 0 | U101: =SUM(U3:U100) -> 0 | W101: =SUM(W3:W100) -> 0 | Y101: =SUM(Y3:Y100) -> 0 | AA101: =SUM(C101:Z101) -> 271500

Sheet Feuil6
A1: احمد | C1: 1 | D1: 2 | E1: 3 | F1: 4 | G1: 5 | H1: 6 | I1: 7 | J1: 8 | K1: 9 | L1: 10 | M1: 11 | N1: 12 | O1: 13 | P1: 14 | Q1: 15 | R1: 16 | S1: 17 | T1: 18 | U1: 19 | V1: 20 | W1: 21 | X1: 22 | Y1: 23 | Z1: 24 | AA1: 25 | AB1: 26 | AC1: 27 | AD1: 28 | AE1: 29 | AF1: 30 | AG1: 31 | AH1: 32 | AI1: 33 | AJ1: 34 | AK1: 35 | AL1: 36 | AM1: 37 | AN1: 38 | AO1: 39
A2: NOM & PRENOM | B2: FONCTION | C2: avnce | D2: date | E2: O,B | F2: avnce2 | G2: date3 | H2: O,B4 | I2: avnce5 | J2: date6 | K2: O,B7 | L2: avnce8 | M2: date9 | N2: O,B10 | O2: avnce11 | P2: date12 | Q2: O,B13 | R2: avnce14 | S2: date15 | T2: O,B16 | U2: avnce17 | V2: date18 | W2: O,B19 | X2: avnce20 | Y2: date21 | Z2: O,B22 | AA2: avnce23 | AB2: date24 | AC2: O,B25 | AD2: avnce26 | AE2: date27 | AF2: O,B28 | AG2: avnce29 | AH2: date30 | AI2: O,B31 | AJ2: avnce32 | AK2: date33 | AL2: O,B34 | AM2: avnce33 | AN2: date34 | AO2: O,B35
A3: =Feuil2!A3 -> محمد | B3: =Feuil2!B3 -> مدير | C3: 4000 | D3: 2013-03-28 | E3: حساب بريدي | F3: 100000 | G3: 2013-03-28 | H3: نقدا
A4: =Feuil2!A4 -> علي | B4: =Feuil2!B4 -> رئيس قسم | C4: 90000 | D4: 28/03/2013 | E4: حساب بريدي
A5: =Feuil2!A5 -> احمد | B5: =Feuil2!B5 -> محاسب
A6: =Feuil2!A6 -> عبد الله | B6: =Feuil2!B6 -> عامل
A7: =Feuil2!A7 -> 0 | B7: =Feuil2!B7 -> 0 | C7: 31000 | D7: 2013-01-16 | E7: CCP
A8: =Feuil2!A8 -> 0 | B8: =Feuil2!B8 -> 0
A9: =Feuil2!A9 -> 0 | B9: =Feuil2!B9 -> 0
A10: =Feuil2!A10 -> 0 | B10: =Feuil2!B10 -> 0
A11: =Feuil2!A11 -> 0 | B11: =Feuil2!B11 -> 0 | C11: 98000 | D11: 2013-01-16 | E11: CCP | F11: 46000 | G11: 2013-03-01 | H11: CCP
A12: =Feuil2!A12 -> 0 | B12: =Feuil2!B12 -> 0 | C12: 63000 | D12: 2013-01-25 | E12: CCP | F12: 44000 | G12: 2013-03-01 | H12: CCP
A13: =Feuil2!A13 -> 0 | B13: =Feuil2!B13 -> 0 | C13: 139500 | D13: 2013-03-01 | E13: CCP
A14: =Feuil2!A14 -> 0 | B14: =Feuil2!B14 -> 0
A15: =Feuil2!A15 -> 0 | B15: =Feuil2!B15 -> 0 | C15: 87600 | D15: 2013-03-01 | E15: CCP
A16: =Feuil2!A16 -> 0 | B16: =Feuil2!B16 -> 0
A17: =Feuil2!A17 -> 0 | B17: =Feuil2!B17 -> 0 | C17: 28200 | D17: 2013-01-13 | E17: ESPAS | F17: 26300 | G17: 2013-03-01 | H17: CCP
A18: =Feuil2!A18 -> 0 | B18: =Feuil2!B18 -> 0 | C18: 45700 | D18: 2013-03-01 | E18: CCP
A19: =Feuil2!A19 -> 0 | B19: =Feuil2!B19 -> 0
A20: =Feuil2!A20 -> 0 | B20: =Feuil2!B20 -> 0
A21: =Feuil2!A21 -> 0 | B21: =Feuil2!B21 -> 0 | C21: 45900 | D21: 2013-02-10 | E21: ESPAS
A22: =Feuil2!A22 -> 0 | B22: =Feuil2!B22 -> 0
A23: =Feuil2!A23 -> 0 | B23: =Feuil2!B23 -> 0
A24: =Feuil2!A24 -> 0 | B24: =Feuil2!B24 -> 0
A25: =Feuil2!A25 -> 0 | B25: =Feuil2!B25 -> 0
A26: =Feuil2!A26 -> 0 | B26: =Feuil2!B26 -> 0
A27: =Feuil2!A27 -> 0 | B27: =Feuil2!B27 -> 0 | C27: 38200 | D27: 2013-03-01 | E27: CCP
A28: =Feuil2!A28 -> 0 | B28: =Feuil2!B28 -> 0 | C28: 20000 | D28: 2013-02-04 | E28: CCP | F28: 53000 | G28: 2013-03-01 | H28: CCP
A29: =Feuil2!A29 -> 0 | B29: =Feuil2!B29 -> 0
A30: =Feuil2!A30 -> 0 | B30: =Feuil2!B30 -> 0 | C30: 14000 | D30: 2013-01-13 | E30: ESPAS
A31: =Feuil2!A31 -> 0 | B31: =Feuil2!B31 -> 0
A32: =Feuil2!A32 -> 0 | B32: =Feuil2!B32 -> 0 | C32: 47500 | D32: 2013-01-25 | E32: CCP
A33: =Feuil2!A33 -> 0 | B33: =Feuil2!B33 -> 0 | C33: 17000 | D33: 2013-01-16 | E33: CCP
A34: =Feuil2!A34 -> 0 | B34: =Feuil2!B34 -> 0
A35: =Feuil2!A35 -> 0 | B35: =Feuil2!B35 -> 0
A36: =Feuil2!A36 -> 0 | B36: =Feuil2!B36 -> 0 | C36: 68400 | D36: 2013-01-13 | E36: ESPAS
A37: =Feuil2!A37 -> 0 | B37: =Feuil2!B37 -> 0 | C37: 11200 | D37: 2013-01-13 | E37: ESPAS
A38: =Feuil2!A38 -> 0 | B38: =Feuil2!B38 -> 0 | C38: 44500 | D38: 25/01/2013 | E38: CCP
A39: =Feuil2!A39 -> 0 | B39: =Feuil2!B39 -> 0 | C39: 60000 | D39: 2013-01-25 | E39: CCP | F39: 78300 | G39: 2013-03-01 | H39: CCP
A40: =Feuil2!A40 -> 0 | B40: =Feuil2!B40 -> 0
A41: =Feuil2!A41 -> 0 | B41: =Feuil2!B41 -> 0
A42: =Feuil2!A42 -> 0 | B42: =Feuil2!B42 -> 0
A43: =Feuil2!A43 -> 0 | B43: =Feuil2!B43 -> 0 | C43: 91000 | D43: 2013-01-16 | E43: CCP
A44: =Feuil2!A44 -> 0 | B44: =Feuil2!B44 -> 0 | C44: 57400 | D44: 2013-03-01 | E44: CCP
A45: =Feuil2!A45 -> 0 | B45: =Feuil2!B45 -> 0
A46: =Feuil2!A46 -> 0 | B46: =Feuil2!B46 -> 0
A47: =Feuil2!A47 -> 0 | B47: =Feuil2!B47 -> 0
A48: =Feuil2!A48 -> 0 | B48: =Feuil2!B48 -> 0
A49: =Feuil2!A49 -> 0 | B49: =Feuil2!B49 -> 0
A50: =Feuil2!A50 -> 0 | B50: =Feuil2!B50 -> 0
A51: =Feuil2!A51 -> 0 | B51: =Feuil2!B51 -> 0
A52: =Feuil2!A52 -> 0 | B52: =Feuil2!B52 -> 0 | C52: 30000 | D52: 2013-02-04 | E52: ESPAS | F52: 5000 | G52: 2013-03-01 | H52: CCP
A53: =Feuil2!A53 -> 0 | B53: =Feuil2!B53 -> 0
A54: =Feuil2!A54 -> 0 | B54: =Feuil2!B54 -> 0
A55: =Feuil2!A55 -> 0 | B55: =Feuil2!B55 -> 0
A56: =Feuil2!A56 -> 0 | B56: =Feuil2!B56 -> 0
A57: =Feuil2!A57 -> 0 | B57: =Feuil2!B57 -> 0
A58: =Feuil2!A58 -> 0 | B58: =Feuil2!B58 -> 0
A59: =Feuil2!A59 -> 0 | B59: =Feuil2!B59 -> 0 | C59: 45400 | D59: 2013-03-01 | E59: CCP
A60: =Feuil2!A60 -> 0 | B60: =Feuil2!B60 -> 0
A61: =Feuil2!A61 -> 0 | B61: =Feuil2!B61 -> 0
A62: =Feuil2!A62 -> 0 | B62: =Feuil2!B62 -> 0
A63: =Feuil2!A63 -> 0 | B63: =Feuil2!B63 -> 0
A64: =Feuil2!A64 -> 0 | B64: =Feuil2!B64 -> 0 | C64: 44300 | D64: 2013-01-23 | E64: ESPAS
A65: =Feuil2!A65 -> 0 | B65: =Feuil2!B65 -> 0 | C65: 21600 | D65: 13/01/2013 | E65: ESPAS
A66: =Feuil2!A66 -> 0 | B66: =Feuil2!B66 -> 0
A67: =Feuil2!A67 -> 0 | B67: =Feuil2!B67 -> 0
A68: =Feuil2!A68 -> 0 | B68: =Feuil2!B68 -> 0
A69: =Feuil2!A69 -> 0 | B69: =Feuil2!B69 -> 0
A70: =Feuil2!A70 -> 0 | B70: =Feuil2!B70 -> 0
A71: =Feuil2!A71 -> 0 | B71: =Feuil2!B71 -> 0
A72: =Feuil2!A72 -> 0 | B72: =Feuil2!B72 -> 0
A73: =Feuil2!A73 -> 0 | B73: =Feuil2!B73 -> 0
A74: =Feuil2!A74 -> 0 | B74: =Feuil2!B74 -> 0
A75: =Feuil2!A75 -> 0 | B75: =Feuil2!B75 -> 0
A76: =Feuil2!A76 -> 0 | B76: =Feuil2!B76 -> 0
A77: =Feuil2!A77 -> 0 | B77: =Feuil2!B77 -> 0
A78: =Feuil2!A78 -> 0 | B78: =Feuil2!B78 -> 0
A79: =Feuil2!A79 -> 0 | B79: =Feuil2!B79 -> 0
A80: =Feuil2!A80 -> 0 | B80: =Feuil2!B80 -> 0
A81: =Feuil2!A81 -> 0 | B81: =Feuil2!B81 -> 0
A82: =Feuil2!A82 -> 0 | B82: =Feuil2!B82 -> 0
A83: =Feuil2!A83 -> 0 | B83: =Feuil2!B83 -> 0
A84: =Feuil2!A84 -> 0 | B84: =Feuil2!B84 -> 0
A85: =Feuil2!A85 -> 0 | B85: =Feuil2!B85 -> 0
A86: =Feuil2!A86 -> 0 | B86: =Feuil2!B86 -> 0
A87: =Feuil2!A87 -> 0 | B87: =Feuil2!B87 -> 0
A88: =Feuil2!A88 -> 0 | B88: =Feuil2!B88 -> 0
A89: =Feuil2!A89 -> 0 | B89: =Feuil2!B89 -> 0
A90: =Feuil2!A90 -> 0 | B90: =Feuil2!B90 -> 0
A91: =Feuil2!A91 -> 0 | B91: =Feuil2!B91 -> 0
A92: =Feuil2!A92 -> 0 | B92: =Feuil2!B92 -> 0
A93: =Feuil2!A93 -> 0 | B93: =Feuil2!B93 -> 0
A94: =Feuil2!A94 -> 0 | B94: =Feuil2!B94 -> 0
A95: =Feuil2!A95 -> 0 | B95: =Feuil2!B95 -> 0
A96: =Feuil2!A96 -> 0 | B96: =Feuil2!B96 -> 0
A97: =Feuil2!A97 -> 0 | B97: =Feuil2!B97 -> 0
A98: =Feuil2!A98 -> 0 | B98: =Feuil2!B98 -> 0
A99: =Feuil2!A99 -> 0 | B99: =Feuil2!B99 -> 0
A100: =Feuil2!A100 -> 0 | B100: =Feuil2!B100 -> 0
C101: =SUM(C3:C100) -> 1243400 | F101: =SUM(F3:F100) -> 352600 | I101: =SUM(I3:I100) -> 0 | L101: =SUM(L3:L100) -> 0 | O101: =SUM(O3:O100) -> 0 | R101: =SUM(R3:R100) -> 0 | U101: =SUM(U3:U100) -> 0 | X101: =SUM(X3:X100) -> 0 | AA101: =SUM(AA3:AA100) -> 0 | AD101: =SUM(AD3:AD100) -> 0 | AG101: =SUM(AG3:AG100) -> 0 | AJ101: =SUM(AJ3:AJ100) -> 0 | AM101: =SUM(AM3:AM100) -> 0 | AP101: =SUM(C101:AO101) -> 1596000

Sheet Feuil16
H1: علي | I1: رئيس قسم | J1: 5000 | K1: 2013-03-28
F2: H M D Le : | G2: =TODAY() -> 2013-03-28 | H2: علي | I2: رئيس قسم | J2: 100000 | K2: 2013-03-28
C3: D E C H A R G E | H3: محمد | I3: مدير | J3: 4000 | K3: 2013-03-28
H4: محمد | I4: مدير | J4: 100000 | K4: 2013-03-28
A5: Je soussigné Mr : | C5: احمد | E5: محاسب | F5: ) | H5: محمد | I5: مدير | J5: 50000 | K5: 2013-03-28
A6: Avoir reçu la somme de : | C6: 20000 | E6: =[1]!ConvNumberLetter(C6,1,,3) -> Vingt Mille Dinar Algerien | F6: ) | H6: احمد | I6: محاسب | J6: 20000 | K6: 2013-03-28
A7: Concernant : | B7: Avonce S/Salier | E7: 507330,00 | G7: =E7-C6 -> 487330
A8: Pièce identité N° : | C8: 243
C9: 2013-01-01 | F9: اتنمك
A10: E .G .T .H | F10: L intéressé
